{"text_format":"1","workbook":"xlsx","n_sheets":4,"sheets":["入力用","給与支払報告書（市町村提出用）","源泉徴収票（受給者交付用）","源泉徴収票（税務署提出用"],"not_rendered":{"charts":0,"images":0,"macros":1,"external_links":0,"defined_names":1,"comments":0,"pivot_tables":0},"unopened":[],"bounds":{"document_bytes":16777216,"sheet_cells":100000,"rows_first":2000,"rows_last":500,"rows_between":2000,"halvings":0,"cell_chars":16384,"cell_head_chars":4096},"cells_cut":0,"cells_raw":0,"read":"whole","date_system":"1900"}

{"sheet":"入力用","index":0,"n_rows":59,"n_cols":141,"rows_kept":59,"cut":false,"hidden":false,"merged":[[0,2,0,113],[1,67,1,78],[1,79,1,113],[2,67,2,77],[2,78,2,113],[3,67,3,75],[3,76,3,113],[4,72,4,81],[4,82,4,113],[5,72,5,113],[6,2,6,23],[6,24,6,46],[6,47,6,69],[6,70,6,91],[6,92,6,113],[7,24,7,42],[7,47,7,69],[7,70,7,91],[7,92,7,113],[8,24,8,42],[8,47,8,69],[8,70,8,91],[8,92,8,113],[9,2,9,18],[11,33,11,43],[11,44,11,60],[11,61,11,71],[11,72,11,82],[11,90,11,100],[11,101,11,106],[12,2,12,7],[12,8,12,13],[12,14,12,18],[12,19,12,32],[12,33,12,38],[12,39,12,43],[12,44,12,49],[12,50,12,55],[12,56,12,60],[12,61,12,66],[12,67,12,71],[12,72,12,77],[12,78,12,82],[12,83,12,89],[12,90,12,94],[12,95,12,100],[12,101,12,106],[12,107,12,113],[13,2,13,7],[13,8,13,13],[13,14,13,18],[13,19,13,32],[13,33,13,38],[13,39,13,43],[13,44,13,49],[13,50,13,55],[13,56,13,60],[13,61,13,66],[13,67,13,71],[13,72,13,77],[13,78,13,82],[13,83,13,89],[13,90,13,94],[13,95,13,100],[13,101,13,106],[13,107,13,113],[14,2,14,23],[14,24,14,46],[14,47,14,69],[14,70,14,91],[14,92,14,113],[15,2,15,23],[15,24,15,43],[15,44,15,46],[15,47,15,69],[15,70,15,91],[15,92,15,113],[16,2,16,23],[16,24,16,46],[16,47,16,69],[16,70,16,91],[16,92,16,113],[17,2,17,113],[18,2,18,113],[19,17,19,29],[19,38,19,50],[19,59,19,71],[19,80,19,92],[19,101,19,113],[20,17,20,29],[20,38,20,50],[20,59,20,71],[20,80,20,92],[20,101,20,113],[21,17,21,29],[21,39,21,45],[21,46,21,52],[21,53,21,59],[21,92,21,113],[22,17,22,29],[22,39,22,45],[22,46,22,52],[22,53,22,59],[22,92,22,113],[23,17,23,29],[23,39,23,45],[23,46,23,52],[23,53,23,59],[23,92,23,113],[24,17,24,29],[24,39,24,45],[24,46,24,52],[24,53,24,59],[24,92,24,113],[25,59,25,71],[25,82,25,92],[25,103,25,113],[28,82,28,92],[28,103,28,113],[29,8,29,14],[29,15,29,50],[29,82,29,92],[29,103,29,113],[30,8,30,14],[30,15,30,41],[30,57,30,63],[30,64,30,90],[30,100,30,113],[31,8,31,14],[31,15,31,41],[31,57,31,63],[31,64,31,90],[32,8,32,14],[32,15,32,41],[32,42,32,44],[32,45,32,50],[32,57,32,63],[32,64,32,90],[32,91,32,93],[32,94,32,99],[33,8,33,14],[33,15,33,41],[33,57,33,63],[33,64,33,90],[34,8,34,14],[34,15,34,41],[34,57,34,63],[34,64,34,90],[35,8,35,14],[35,15,35,41],[35,42,35,44],[35,45,35,50],[35,57,35,63],[35,64,35,90],[35,91,35,93],[35,94,35,99],[36,8,36,14],[36,15,36,41],[36,57,36,63],[36,64,36,90],[37,8,37,14],[37,15,37,41],[37,57,37,63],[37,64,37,90],[37,100,37,113],[38,8,38,14],[38,15,38,41],[38,42,38,44],[38,45,38,50],[38,57,38,63],[38,64,38,90],[38,91,38,93],[38,94,38,99],[39,8,39,14],[39,15,39,41],[39,57,39,63],[39,64,39,90],[40,8,40,14],[40,15,40,41],[40,57,40,63],[40,64,40,90],[41,8,41,14],[41,15,41,41],[41,42,41,44],[41,45,41,50],[41,57,41,63],[41,64,41,90],[41,91,41,93],[41,94,41,99],[42,24,42,33],[44,54,44,58],[44,59,44,63],[44,64,44,68],[44,69,44,73],[44,74,44,78],[44,79,44,98],[44,99,44,103],[44,104,44,108],[44,109,44,113],[45,2,45,6],[45,7,45,10],[45,11,45,14],[45,15,45,18],[45,19,45,23],[45,24,45,28],[45,29,45,33],[45,34,45,38],[45,39,45,43],[45,44,45,48],[45,54,45,58],[45,59,45,63],[45,64,45,68],[45,69,45,73],[45,74,45,78],[45,79,45,98],[45,99,45,103],[45,104,45,108],[45,109,45,113],[46,7,46,18],[46,19,46,57],[46,58,46,113],[47,7,47,18],[47,19,47,113],[48,7,48,18],[48,19,48,74],[48,75,48,82],[48,83,48,113],[49,2,49,14],[49,15,49,17],[49,18,49,20],[49,21,49,23],[49,24,49,26],[49,27,49,29],[49,30,49,44],[49,45,49,47],[49,48,49,50],[49,51,49,53],[49,54,49,56],[49,57,49,59],[49,60,49,62],[49,63,49,65],[49,66,49,68],[50,1,50,114],[1,2,5,7],[1,8,5,11],[1,12,5,66],[4,67,5,71],[7,2,8,23],[7,43,8,46],[9,19,11,32],[9,33,10,82],[9,83,11,89],[9,90,10,106],[9,107,11,113],[10,2,11,13],[10,14,11,18],[19,2,20,8],[19,9,20,16],[19,30,20,37],[19,51,20,58],[19,72,20,79],[19,93,20,100],[21,2,24,8],[21,9,22,16],[21,30,22,38],[21,60,22,70],[21,71,22,79],[21,80,22,91],[23,9,24,16],[23,30,24,38],[23,60,24,70],[23,71,24,79],[23,80,24,91],[25,2,29,7],[25,8,26,14],[25,15,26,41],[25,42,28,44],[25,45,28,50],[25,51,29,58],[25,72,27,81],[25,93,27,102],[26,59,29,71],[26,82,27,92],[26,103,27,113],[27,8,28,14],[27,15,28,41],[28,72,29,81],[28,93,29,102],[30,6,32,7],[30,42,31,44],[30,45,31,50],[30,55,32,56],[30,91,31,93],[30,94,31,99],[31,100,36,113],[33,6,35,7],[33,42,34,44],[33,45,34,50],[33,55,35,56],[33,91,34,93],[33,94,34,99],[36,6,38,7],[36,42,37,44],[36,45,37,50],[36,55,38,56],[36,91,37,93],[36,94,37,99],[38,100,41,113],[39,6,41,7],[39,42,40,44],[39,45,40,50],[39,55,41,56],[39,91,40,93],[39,94,40,99],[42,2,44,6],[42,7,44,10],[42,11,44,14],[42,15,44,18],[42,19,44,23],[42,34,44,38],[42,39,44,43],[42,44,44,48],[42,49,45,53],[42,54,43,78],[42,79,43,113],[43,24,44,28],[43,29,44,33],[46,2,48,6],[30,2,41,5],[30,51,41,54]]}
[null,null,"【令和８年度（令和７年分）給与支払報告書及び源泉徴収票　作成入力用シート】"]
[null,null,"支　払\n\nを受け\n\nる　者",null,null,null,null,null,"住　所",null,null,null,null,null,null,null,null,null,null,null,null,null,null,null,null,null,null,null,null,null,null,null,null,null,null,null,null,null,null,null,null,null,null,null,null,null,null,null,null,null,null,null,null,null,null,null,null,null,null,null,null,null,null,null,null,null,null,"（受給者番号）"]
[null,null,null,null,null,null,null,null,null,null,null,null,null,null,null,null,null,null,null,null,null,null,null,null,null,null,null,null,null,null,null,null,null,null,null,null,null,null,null,null,null,null,null,null,null,null,null,null,null,null,null,null,null,null,null,null,null,null,null,null,null,null,null,null,null,null,null,"（個人番号）"]
[null,null,null,null,null,null,null,null,null,null,null,null,null,null,null,null,null,null,null,null,null,null,null,null,null,null,null,null,null,null,null,null,null,null,null,null,null,null,null,null,null,null,null,null,null,null,null,null,null,null,null,null,null,null,null,null,null,null,null,null,null,null,null,null,null,null,null,"（役職名）"]
[null,null,null,null,null,null,null,null,null,null,null,null,null,null,null,null,null,null,null,null,null,null,null,null,null,null,null,null,null,null,null,null,null,null,null,null,null,null,null,null,null,null,null,null,null,null,null,null,null,null,null,null,null,null,null,null,null,null,null,null,null,null,null,null,null,null,null,"氏 名",null,null,null,null,"（フリガナ）",null,null,null,null,null,null,null,null,null,null,null,null,null,null,null,null,null,null,null,null,null,null,null,null,null,null,null,null,null,null,null,null,null,null,null,null,null,null,null,null,null,null,null,null,null,"明治","大正","昭和","平成","令和"]
[null,null,null,null,null,null,null,null,null,null,null,null,null,null,null,null,null,null,null,null,null,null,null,null,null,null,null,null,null,null,null,null,null,null,null,null,null,null,null,null,null,null,null,null,null,null,null,null,null,null,null,null,null,null,null,null,null,null,null,null,null,null,null,null,null,null,null,null,null,null,null,null,null,null,null,null,null,null,null,null,null,null,null,null,null,null,null,null,null,null,null,null,null,null,null,null,null,null,null,null,null,null,null,null,null,null,null,null,null,null,null,null,null,null,null,null,null,null,"〇","00","01","02","03","04","10","20","30","40","50","60","70","80","90","11","21","31","41","51","61","71","81"]
[null,null,"種　　　　　別",null,null,null,null,null,null,null,null,null,null,null,null,null,null,null,null,null,null,null,null,null,"支　払　金　額",null,null,null,null,null,null,null,null,null,null,null,null,null,null,null,null,null,null,null,null,null,null,"給与所得控除後の金額\n(調　整　控　除　後)",null,null,null,null,null,null,null,null,null,null,null,null,null,null,null,null,null,null,null,null,null,null,"所得控除の額の合計額",null,null,null,null,null,null,null,null,null,null,null,null,null,null,null,null,null,null,null,null,null,"源 泉 徴 収 税 額"]
[null,null,null,null,null,null,null,null,null,null,null,null,null,null,null,null,null,null,null,null,null,null,null,null,null,null,null,null,null,null,null,null,null,null,null,null,null,null,null,null,null,null,null,"円",null,null,null,"円",null,null,null,null,null,null,null,null,null,null,null,null,null,null,null,null,null,null,null,null,null,null,"円",null,null,null,null,null,null,null,null,null,null,null,null,null,null,null,null,null,null,null,null,null,"円"]
[null,null,null,null,null,null,null,null,null,null,null,null,null,null,null,null,null,null,null,null,null,null,null,null,null,null,null,null,null,null,null,null,null,null,null,null,null,null,null,null,null,null,null,null,null,null,null,null,null,null,null,null,null,null,null,null,null,null,null,null,null,null,null,null,null,null,null,null,null,null,null,null,null,null,null,null,null,null,null,null,null,null,null,null,null,null,null,null,null,null,null,null,null,null,null,null,null,null,null,null,null,null,null,null,null,null,null,null,null,null,null,null,null,null,null,null,null,13,12,11,10,9,8,7,6,5,4,3,2,1]
[null,null,"(源泉)控除対象配偶者",null,null,null,null,null,null,null,null,null,null,null,null,null,null,null,null,"配偶者(特別)\n控 除 の 額",null,null,null,null,null,null,null,null,null,null,null,null,null,"控除対象扶養親族等の数\n（配偶者を除く。）",null,null,null,null,null,null,null,null,null,null,null,null,null,null,null,null,null,null,null,null,null,null,null,null,null,null,null,null,null,null,null,null,null,null,null,null,null,null,null,null,null,null,null,null,null,null,null,null,null,"16歳未満\n扶養親族\nの　　数",null,null,null,null,null,null,"障害者の数\n（本人を除く｡）",null,null,null,null,null,null,null,null,null,null,null,null,null,null,null,null,"非居住者\nである\n親族の数",null,null,null,null,null,null,null,null,"個人番号",null,{"$f":"IF(LENB($CA$3)<DO$9,IF($CA$3=\"\",\"\",0),TRUNC(RIGHTB($CA$3,DO$9)/POWER(10,DO$9-1),0))","v":""},"","","","","","","","","","",""]
[null,null," の有無等",null,null,null,null,null,null,null,null,null,null,null,"老人"]
[null,null,null,null,null,null,null,null,null,null,null,null,null,null,null,null,null,null,null,null,null,null,null,null,null,null,null,null,null,null,null,null,null,"特　定",null,null,null,null,null,null,null,null,null,null,"老　　人",null,null,null,null,null,null,null,null,null,null,null,null,null,null,null,null,"そ の 他",null,null,null,null,null,null,null,null,null,null,"特　親",null,null,null,null,null,null,null,null,null,null,null,null,null,null,null,null,null,"特　別",null,null,null,null,null,null,null,null,null,null,"その他"]
[null,null,"有",null,null,null,null,null,"従有",null,null,null,null,null,null,null,null,null,null,"円",null,null,null,null,null,null,null,null,null,null,null,null,null,"人",null,null,null,null,null,"従人",null,null,null,null,"内",null,null,null,null,null,"人",null,null,null,null,null,"従人",null,null,null,null,"人",null,null,null,null,null,"従人",null,null,null,null,"人",null,null,null,null,null,"従人",null,null,null,null,"人",null,null,null,null,null,null,"内",null,null,null,null,"人",null,null,null,null,null,"人",null,null,null,null,null,"人"]
[]
[null,null,"特定親族特別控除の額",null,null,null,null,null,null,null,null,null,null,null,null,null,null,null,null,null,null,null,null,null,"社会保険料等の金額",null,null,null,null,null,null,null,null,null,null,null,null,null,null,null,null,null,null,null,null,null,null,"生命保険料の控除額",null,null,null,null,null,null,null,null,null,null,null,null,null,null,null,null,null,null,null,null,null,null,"地震保険料の控除額",null,null,null,null,null,null,null,null,null,null,null,null,null,null,null,null,null,null,null,null,null,"住宅借入金等特別控除の額"]
[null,null,null,null,null,null,null,null,null,null,null,null,null,null,null,null,null,null,null,null,null,null,null,null,null,null,null,null,null,null,null,null,null,null,null,null,null,null,null,null,null,null,null,null,"円",null,null,"円",null,null,null,null,null,null,null,null,null,null,null,null,null,null,null,null,null,null,null,null,null,null,"円",null,null,null,null,null,null,null,null,null,null,null,null,null,null,null,null,null,null,null,null,null,"円"]
[]
[null,null,"（摘要）"]
[]
[null,null,"生命保険\n料の金額\nの内訳",null,null,null,null,null,null,"新生命\n保険料\nの金額",null,null,null,null,null,null,null,"円",null,null,null,null,null,null,null,null,null,null,null,null,"旧生命\n保険料\nの金額",null,null,null,null,null,null,null,"円",null,null,null,null,null,null,null,null,null,null,null,null,"介護医療\n保険料\nの金額",null,null,null,null,null,null,null,"円",null,null,null,null,null,null,null,null,null,null,null,null,"新個人年\n金保険料\nの金額",null,null,null,null,null,null,null,"円",null,null,null,null,null,null,null,null,null,null,null,null,"旧個人年\n金保険料\nの金額",null,null,null,null,null,null,null,"円"]
[]
[null,null,"住宅借入\n金等特別\n控除の額\nの内訳",null,null,null,null,null,null,"住宅借入金\n等特別控除\n適用数",null,null,null,null,null,null,null,null,null,null,null,null,null,null,null,null,null,null,null,null,"居住開始年月\n日（１回目）",null,null,null,null,null,null,null,null,"年",null,null,null,null,null,null,"月",null,null,null,null,null,null,"日",null,null,null,null,null,null,"住宅借入金等\n特別控除区分\n（1回目）",null,null,null,null,null,null,null,null,null,null,null,null,null,null,null,null,null,null,null,"住宅借入金等\n年　末　残　高\n（1回目）",null,null,null,null,null,null,null,null,null,null,null,"円"]
[null,null,null,null,null,null,null,null,null,null,null,null,null,null,null,null,null,null,null,null,null,null,null,null,null,null,null,null,null,null,null,null,null,null,null,null,null,null,null,null,null,null,null,null,null,null,null,null,null,null,null,null,null,null,null,null,null,null,null,null,null,null,null,null,null,null,null,null,null,null,null,null,null,null,null,null,null,null,null,null,null,null,null,null,null,null,null,null,null,null,null,null,null,null,null,null,null,null,null,null,null,null,null,null,null,null,null,null,null,null,null,null,null,null,null,null,"個人番号（配偶者）",null,{"$f":"IF(LENB($P$30)<DO$9,IF($P$30=\"\",\"\",0),TRUNC(RIGHTB($P$30,DO$9)/POWER(10,DO$9-1),0))","v":""},"","","","","","","","","","",""]
[null,null,null,null,null,null,null,null,null,"住宅借入金\n等特別控除\n可能額",null,null,null,null,null,null,null,"円",null,null,null,null,null,null,null,null,null,null,null,null,"居住開始年月\n日（２回目）",null,null,null,null,null,null,null,null,"年",null,null,null,null,null,null,"月",null,null,null,null,null,null,"日",null,null,null,null,null,null,"住宅借入金等\n特別控除区分\n（2回目）",null,null,null,null,null,null,null,null,null,null,null,null,null,null,null,null,null,null,null,"住宅借入金等\n年　末　残　高\n（2回目）",null,null,null,null,null,null,null,null,null,null,null,"円",null,null,null,null,null,null,null,null,null,null,null,null,null,null,null,null,null,null,null,null,null,null,null,"個人番号１",null,{"$f":"IF(LENB($P$33)<DO$9,IF($P$33=\"\",\"\",0),TRUNC(RIGHTB($P$33,DO$9)/POWER(10,DO$9-1),0))","v":""},"","","","","","","","","","",""]
[null,null,null,null,null,null,null,null,null,null,null,null,null,null,null,null,null,null,null,null,null,null,null,null,null,null,null,null,null,null,null,null,null,null,null,null,null,null,null,null,null,null,null,null,null,null,null,null,null,null,null,null,null,null,null,null,null,null,null,null,null,null,null,null,null,null,null,null,null,null,null,null,null,null,null,null,null,null,null,null,null,null,null,null,null,null,null,null,null,null,null,null,null,null,null,null,null,null,null,null,null,null,null,null,null,null,null,null,null,null,null,null,null,null,null,null,"個人番号２",null,{"$f":"IF(LENB($P$36)<DO$9,IF($P$36=\"\",\"\",0),TRUNC(RIGHTB($P$36,DO$9)/POWER(10,DO$9-1),0))","v":""},"","","","","","","","","","",""]
[null,null,"(源泉・特別)控除対象配偶者",null,null,null,null,null,"(フリガナ)",null,null,null,null,null,null,null,null,null,null,null,null,null,null,null,null,null,null,null,null,null,null,null,null,null,null,null,null,null,null,null,null,null,"区分",null,null,null,null,null,null,null,null,"配偶者の\n合計所得",null,null,null,null,null,null,null,"円",null,null,null,null,null,null,null,null,null,null,null,null,"国民年金保険\n料等の金額",null,null,null,null,null,null,null,null,null,"円",null,null,null,null,null,null,null,null,null,null,"旧長期損害\n保険料の金額",null,null,null,null,null,null,null,null,null,"円",null,null,null,null,null,null,null,null,null,null,null,null,"個人番号３",null,{"$f":"IF(LENB($P$39)<DO$9,IF($P$39=\"\",\"\",0),TRUNC(RIGHTB($P$39,DO$9)/POWER(10,DO$9-1),0))","v":""},"","","","","","","","","","",""]
[null,null,null,null,null,null,null,null,null,null,null,null,null,null,null,null,null,null,null,null,null,null,null,null,null,null,null,null,null,null,null,null,null,null,null,null,null,null,null,null,null,null,null,null,null,null,null,null,null,null,null,null,null,null,null,null,null,null,null,null,null,null,null,null,null,null,null,null,null,null,null,null,null,null,null,null,null,null,null,null,null,null,null,null,null,null,null,null,null,null,null,null,null,null,null,null,null,null,null,null,null,null,null,null,null,null,null,null,null,null,null,null,null,null,null,null,"個人番号４",null,{"$f":"IF(LENB($P$42)<DO$9,IF($P$42=\"\",\"\",0),TRUNC(RIGHTB($P$42,DO$9)/POWER(10,DO$9-1),0))","v":""},"","","","","","","","","","",""]
[null,null,null,null,null,null,null,null,"氏　　名",null,null,null,null,null,null,null,null,null,null,null,null,null,null,null,null,null,null,null,null,null,null,null,null,null,null,null,null,null,null,null,null,null,null,null,null,null,null,null,null,null,null,null,null,null,null,null,null,null,null,null,null,null,null,null,null,null,null,null,null,null,null,null,null,null,null,null,null,null,null,null,null,null,null,null,null,null,null,null,null,null,null,null,null,null,null,null,null,null,null,null,null,null,null,null,null,null,null,null,null,null,null,null,null,null,null,null,"個人番号①",null,{"$f":"IF(LENB($BM$33)<DO$9,IF($BM$33=\"\",\"\",0),TRUNC(RIGHTB($BM$33,DO$9)/POWER(10,DO$9-1),0))","v":""},"","","","","","","","","","",""]
[null,null,null,null,null,null,null,null,null,null,null,null,null,null,null,null,null,null,null,null,null,null,null,null,null,null,null,null,null,null,null,null,null,null,null,null,null,null,null,null,null,null,null,null,null,null,null,null,null,null,null,null,null,null,null,null,null,null,null,null,null,null,null,null,null,null,null,null,null,null,null,null,"基礎控除の額",null,null,null,null,null,null,null,null,null,"円",null,null,null,null,null,null,null,null,null,null,"所得金額\n調整控除額",null,null,null,null,null,null,null,null,null,"円",null,null,null,null,null,null,null,null,null,null,null,null,"個人番号②",null,{"$f":"IF(LENB($BM$36)<DO$9,IF($BM$36=\"\",\"\",0),TRUNC(RIGHTB($BM$36,DO$9)/POWER(10,DO$9-1),0))","v":""},"","","","","","","","","","",""]
[null,null,null,null,null,null,null,null,"個人番号",null,null,null,null,null,null,null,null,null,null,null,null,null,null,null,null,null,null,null,null,null,null,null,null,null,null,null,null,null,null,null,null,null,null,null,null,null,null,null,null,null,null,null,null,null,null,null,null,null,null,null,null,null,null,null,null,null,null,null,null,null,null,null,null,null,null,null,null,null,null,null,null,null,null,null,null,null,null,null,null,null,null,null,null,null,null,null,null,null,null,null,null,null,null,null,null,null,null,null,null,null,null,null,null,null,null,null,"個人番号③",null,{"$f":"IF(LENB($BM$39)<DO$9,IF($BM$39=\"\",\"\",0),TRUNC(RIGHTB($BM$39,DO$9)/POWER(10,DO$9-1),0))","v":""},"","","","","","","","","","",""]
[null,null,"控除対象扶養親族等",null,null,null,"１",null,"(フリガナ)",null,null,null,null,null,null,null,null,null,null,null,null,null,null,null,null,null,null,null,null,null,null,null,null,null,null,null,null,null,null,null,null,null,"区分",null,null,null,null,null,null,null,null,"16歳未満の扶養親族",null,null,null,"１",null,"(フリガナ)",null,null,null,null,null,null,null,null,null,null,null,null,null,null,null,null,null,null,null,null,null,null,null,null,null,null,null,null,null,null,null,null,null,"区分",null,null,null,null,null,null,null,null,"5人目以降の控除対象\n扶養親族等の個人番号",null,null,null,null,null,null,null,null,null,null,null,null,null,null,null,"個人番号④",null,{"$f":"IF(LENB($BM$42)<DO$9,IF($BM$42=\"\",\"\",0),TRUNC(RIGHTB($BM$42,DO$9)/POWER(10,DO$9-1),0))","v":""},"","","","","","","","","","",""]
[null,null,null,null,null,null,null,null,"氏　　名",null,null,null,null,null,null,null,null,null,null,null,null,null,null,null,null,null,null,null,null,null,null,null,null,null,null,null,null,null,null,null,null,null,null,null,null,null,null,null,null,null,null,null,null,null,null,null,null,"氏　　名",null,null,null,null,null,null,null,null,null,null,null,null,null,null,null,null,null,null,null,null,null,null,null,null,null,null,null,null,null,null,null,null,null,null,null,null,null,null,null,null,null,null,null,null,null,null,null,null,null,null,null,null,null,null,null,null,null,null,"選択",{"$f":"IF($DM$33=\"法人番号\",DN34,IF(DN35=\"\",\"\",DN35))","v":""},"","","","","","","","","","","",""]
[null,null,null,null,null,null,null,null,"個人番号",null,null,null,null,null,null,null,null,null,null,null,null,null,null,null,null,null,null,null,null,null,null,null,null,null,null,null,null,null,null,null,null,null,null,null,null,null,null,null,null,null,null,null,null,null,null,null,null,"個人番号",null,null,null,null,null,null,null,null,null,null,null,null,null,null,null,null,null,null,null,null,null,null,null,null,null,null,null,null,null,null,null,null,null,null,null,null,null,null,null,null,null,null,null,null,null,null,null,null,null,null,null,null,null,null,null,null,null,null,{"$f":"IF(T47>999999999999,\"法人番号\",IF(T47=\"\",\"\",\"個人番号\"))","v":""}]
[null,null,null,null,null,null,"２",null,"(フリガナ)",null,null,null,null,null,null,null,null,null,null,null,null,null,null,null,null,null,null,null,null,null,null,null,null,null,null,null,null,null,null,null,null,null,"区分",null,null,null,null,null,null,null,null,null,null,null,null,"２",null,"(フリガナ)",null,null,null,null,null,null,null,null,null,null,null,null,null,null,null,null,null,null,null,null,null,null,null,null,null,null,null,null,null,null,null,null,null,"区分",null,null,null,null,null,null,null,null,null,null,null,null,null,null,null,null,null,null,null,null,null,null,null,null,"法人番号",{"$f":"IF(LENB($T$47)<DN$9,IF($T$47=\"\",\"\",0),TRUNC(RIGHTB($T$47,DN$9)/POWER(10,DN$9-1),0))","v":""},"","","","","","","","","","","",""]
[null,null,null,null,null,null,null,null,"氏　　名",null,null,null,null,null,null,null,null,null,null,null,null,null,null,null,null,null,null,null,null,null,null,null,null,null,null,null,null,null,null,null,null,null,null,null,null,null,null,null,null,null,null,null,null,null,null,null,null,"氏　　名",null,null,null,null,null,null,null,null,null,null,null,null,null,null,null,null,null,null,null,null,null,null,null,null,null,null,null,null,null,null,null,null,null,null,null,null,null,null,null,null,null,null,null,null,null,null,null,null,null,null,null,null,null,null,null,null,null,null,"個人番号",null,{"$f":"IF(LENB($T$47)<DO$9,IF($T$47=\"\",\"\",0),TRUNC(RIGHTB($T$47,DO$9)/POWER(10,DO$9-1),0))","v":""},"","","","","","","","","","",""]
[null,null,null,null,null,null,null,null,"個人番号",null,null,null,null,null,null,null,null,null,null,null,null,null,null,null,null,null,null,null,null,null,null,null,null,null,null,null,null,null,null,null,null,null,null,null,null,null,null,null,null,null,null,null,null,null,null,null,null,"個人番号"]
[null,null,null,null,null,null,"３",null,"(フリガナ)",null,null,null,null,null,null,null,null,null,null,null,null,null,null,null,null,null,null,null,null,null,null,null,null,null,null,null,null,null,null,null,null,null,"区分",null,null,null,null,null,null,null,null,null,null,null,null,"３",null,"(フリガナ)",null,null,null,null,null,null,null,null,null,null,null,null,null,null,null,null,null,null,null,null,null,null,null,null,null,null,null,null,null,null,null,null,null,"区分"]
[null,null,null,null,null,null,null,null,"氏　　名",null,null,null,null,null,null,null,null,null,null,null,null,null,null,null,null,null,null,null,null,null,null,null,null,null,null,null,null,null,null,null,null,null,null,null,null,null,null,null,null,null,null,null,null,null,null,null,null,"氏　　名",null,null,null,null,null,null,null,null,null,null,null,null,null,null,null,null,null,null,null,null,null,null,null,null,null,null,null,null,null,null,null,null,null,null,null,null,null,null,null,null,null,null,"5人目以降の16歳未満\nの扶養親族の個人番号"]
[null,null,null,null,null,null,null,null,"個人番号",null,null,null,null,null,null,null,null,null,null,null,null,null,null,null,null,null,null,null,null,null,null,null,null,null,null,null,null,null,null,null,null,null,null,null,null,null,null,null,null,null,null,null,null,null,null,null,null,"個人番号"]
[null,null,null,null,null,null,"４",null,"(フリガナ)",null,null,null,null,null,null,null,null,null,null,null,null,null,null,null,null,null,null,null,null,null,null,null,null,null,null,null,null,null,null,null,null,null,"区分",null,null,null,null,null,null,null,null,null,null,null,null,"４",null,"(フリガナ)",null,null,null,null,null,null,null,null,null,null,null,null,null,null,null,null,null,null,null,null,null,null,null,null,null,null,null,null,null,null,null,null,null,"区分"]
[null,null,null,null,null,null,null,null,"氏　　名",null,null,null,null,null,null,null,null,null,null,null,null,null,null,null,null,null,null,null,null,null,null,null,null,null,null,null,null,null,null,null,null,null,null,null,null,null,null,null,null,null,null,null,null,null,null,null,null,"氏　　名"]
[null,null,null,null,null,null,null,null,"個人番号",null,null,null,null,null,null,null,null,null,null,null,null,null,null,null,null,null,null,null,null,null,null,null,null,null,null,null,null,null,null,null,null,null,null,null,null,null,null,null,null,null,null,null,null,null,null,null,null,"個人番号"]
[null,null,"未成年者",null,null,null,null,"外国人",null,null,null,"死亡退職",null,null,null,"災害者",null,null,null,"乙欄",null,null,null,null,"本人が障害者",null,null,null,null,null,null,null,null,null,"寡婦",null,null,null,null,"ひとり親",null,null,null,null,"勤労学生",null,null,null,null,null,null,null,null,null,"中途就・退職",null,null,null,null,null,null,null,null,null,null,null,null,null,null,null,null,null,null,null,null,null,null,null,null,"受給者生年月日"]
[null,null,null,null,null,null,null,null,null,null,null,null,null,null,null,null,null,null,null,null,null,null,null,null,"特別",null,null,null,null,"その他"]
[null,null,null,null,null,null,null,null,null,null,null,null,null,null,null,null,null,null,null,null,null,null,null,null,null,null,null,null,null,null,null,null,null,null,null,null,null,null,null,null,null,null,null,null,null,null,null,null,null,null,null,null,null,null,"就職",null,null,null,null,"退職",null,null,null,null,"年",null,null,null,null,"月",null,null,null,null,"日",null,null,null,null,"元　　　号",null,null,null,null,null,null,null,null,null,null,null,null,null,null,null,null,null,null,null,"年",null,null,null,null,"月",null,null,null,null,"日"]
[null,null,null,null,null,null,null,null,null,null,null,null,null,null,null,null,null,null,null,null,null,null,null,null,null,null,null,null,null,null,null,null,null,null,null,null,null,null,null,null,null,null,null,null,null,null,null,null,null,null,null,null,null,null,null,null,null,null,null,null,null,null,null,null,7]
[null,null,"支　払　者",null,null,null,null,"個人番号又は\n法　人　番　号"]
[null,null,null,null,null,null,null,"住所（居所）\n又は所在地"]
[null,null,null,null,null,null,null,"氏名又は名称",null,null,null,null,null,null,null,null,null,null,null,null,null,null,null,null,null,null,null,null,null,null,null,null,null,null,null,null,null,null,null,null,null,null,null,null,null,null,null,null,null,null,null,null,null,null,null,null,null,null,null,null,null,null,null,null,null,null,null,null,null,null,null,null,null,null,null,"（電話）"]
[null,null,"署　番　号",null,null,null,null,null,null,null,null,null,null,null,null,null,null,null,null,null,null,null,null,null,null,null,null,null,null,null,"整　理　番　号"]
[]
[]
[null,"　"]
[]
["明治"]
["大正","○"]
["昭和"]
["平成"]
["令和"]

{"sheet":"給与支払報告書（市町村提出用）","index":1,"n_rows":54,"n_cols":114,"rows_kept":54,"cut":false,"hidden":false,"merged":[[1,3,1,53],[1,54,1,72],[1,73,1,98],[1,99,1,114],[2,3,2,5],[2,6,2,8],[2,9,2,11],[2,12,2,14],[2,15,2,17],[2,18,2,20],[2,21,2,23],[2,24,2,26],[2,27,2,29],[2,30,2,32],[2,33,2,35],[2,36,2,38],[2,39,2,41],[2,42,2,44],[2,45,2,47],[2,48,2,50],[2,51,2,53],[2,54,2,72],[2,73,2,98],[2,99,2,114],[3,9,3,16],[3,17,3,67],[3,68,3,80],[3,81,3,114],[4,68,4,78],[4,79,4,81],[4,82,4,84],[4,85,4,87],[4,88,4,90],[4,91,4,93],[4,94,4,96],[4,97,4,99],[4,100,4,102],[4,103,4,105],[4,106,4,108],[4,109,4,111],[4,112,4,114],[5,68,5,76],[5,77,5,114],[6,73,6,82],[6,83,6,114],[7,73,7,114],[8,3,8,24],[8,25,8,47],[8,48,8,70],[8,71,8,92],[8,93,8,114],[11,25,11,44],[11,45,11,47],[11,48,11,67],[11,68,11,70],[11,71,11,89],[11,90,11,92],[11,93,11,111],[11,112,11,114],[12,3,12,19],[14,15,14,19],[14,34,14,44],[14,45,14,61],[14,62,14,72],[14,73,14,83],[14,91,14,101],[14,102,14,107],[15,3,15,8],[15,9,15,14],[15,15,15,19],[15,20,15,33],[15,34,15,39],[15,40,15,44],[15,45,15,50],[15,51,15,56],[15,57,15,61],[15,62,15,67],[15,68,15,72],[15,73,15,78],[15,79,15,83],[15,84,15,90],[15,91,15,95],[15,96,15,101],[15,102,15,107],[15,108,15,114],[16,3,16,8],[16,9,16,14],[16,15,16,19],[16,20,16,33],[16,34,16,39],[16,40,16,44],[16,45,16,50],[16,51,16,56],[16,57,16,61],[16,62,16,67],[16,68,16,72],[16,73,16,78],[16,79,16,83],[16,84,16,90],[16,91,16,95],[16,96,16,101],[16,102,16,107],[16,108,16,114],[17,3,17,24],[17,25,17,47],[17,48,17,70],[17,71,17,92],[17,93,17,114],[20,3,20,24],[20,25,20,47],[20,48,20,70],[20,71,20,92],[20,93,20,114],[21,3,21,114],[22,3,22,114],[23,18,23,30],[23,39,23,51],[23,60,23,72],[23,81,23,93],[23,102,23,114],[24,18,24,30],[24,39,24,51],[24,60,24,72],[24,81,24,93],[24,102,24,114],[25,18,25,30],[25,40,25,46],[25,47,25,53],[25,54,25,60],[25,93,25,114],[26,18,26,30],[26,40,26,46],[26,47,26,53],[26,54,26,60],[26,93,26,114],[27,18,27,30],[27,40,27,46],[27,47,27,53],[27,54,27,60],[27,93,27,114],[28,18,28,30],[28,40,28,46],[28,47,28,53],[28,54,28,60],[28,93,28,114],[29,60,29,72],[29,83,29,93],[29,104,29,114],[32,83,32,93],[32,104,32,114],[33,9,33,15],[33,16,33,18],[33,19,33,21],[33,22,33,24],[33,25,33,27],[33,28,33,30],[33,31,33,33],[33,34,33,36],[33,37,33,39],[33,40,33,42],[33,43,33,45],[33,46,33,48],[33,49,33,51],[33,83,33,93],[33,104,33,114],[34,9,34,15],[34,16,34,42],[34,58,34,64],[34,65,34,91],[34,101,34,114],[35,9,35,15],[35,16,35,42],[35,58,35,64],[35,65,35,91],[36,9,36,15],[36,16,36,18],[36,19,36,21],[36,22,36,24],[36,25,36,27],[36,28,36,30],[36,31,36,33],[36,34,36,36],[36,37,36,39],[36,40,36,42],[36,43,36,45],[36,46,36,48],[36,49,36,51],[36,58,36,64],[36,65,36,67],[36,68,36,70],[36,71,36,73],[36,74,36,76],[36,77,36,79],[36,80,36,82],[36,83,36,85],[36,86,36,88],[36,89,36,91],[36,92,36,94],[36,95,36,97],[36,98,36,100],[37,9,37,15],[37,16,37,42],[37,58,37,64],[37,65,37,91],[38,9,38,15],[38,16,38,42],[38,58,38,64],[38,65,38,91],[39,9,39,15],[39,16,39,18],[39,19,39,21],[39,22,39,24],[39,25,39,27],[39,28,39,30],[39,31,39,33],[39,34,39,36],[39,37,39,39],[39,40,39,42],[39,43,39,45],[39,46,39,48],[39,49,39,51],[39,58,39,64],[39,65,39,67],[39,68,39,70],[39,71,39,73],[39,74,39,76],[39,77,39,79],[39,80,39,82],[39,83,39,85],[39,86,39,88],[39,89,39,91],[39,92,39,94],[39,95,39,97],[39,98,39,100],[40,9,40,15],[40,16,40,42],[40,58,40,64],[40,65,40,91],[41,9,41,15],[41,16,41,42],[41,58,41,64],[41,65,41,91],[41,101,41,114],[42,9,42,15],[42,16,42,18],[42,19,42,21],[42,22,42,24],[42,25,42,27],[42,28,42,30],[42,31,42,33],[42,34,42,36],[42,37,42,39],[42,40,42,42],[42,43,42,45],[42,46,42,48],[42,49,42,51],[42,58,42,64],[42,65,42,67],[42,68,42,70],[42,71,42,73],[42,74,42,76],[42,77,42,79],[42,80,42,82],[42,83,42,85],[42,86,42,88],[42,89,42,91],[42,92,42,94],[42,95,42,97],[42,98,42,100],[43,9,43,15],[43,16,43,42],[43,58,43,64],[43,65,43,91],[44,9,44,15],[44,16,44,42],[44,58,44,64],[44,65,44,91],[45,9,45,15],[45,16,45,18],[45,19,45,21],[45,22,45,24],[45,25,45,27],[45,28,45,30],[45,31,45,33],[45,34,45,36],[45,37,45,39],[45,40,45,42],[45,43,45,45],[45,46,45,48],[45,49,45,51],[45,58,45,64],[45,65,45,67],[45,68,45,70],[45,71,45,73],[45,74,45,76],[45,77,45,79],[45,80,45,82],[45,83,45,85],[45,86,45,88],[45,89,45,91],[45,92,45,94],[45,95,45,97],[45,98,45,100],[46,25,46,34],[48,55,48,59],[48,60,48,64],[48,65,48,69],[48,70,48,74],[48,75,48,79],[48,80,48,99],[48,100,48,104],[48,105,48,109],[48,110,48,114],[49,3,49,7],[49,8,49,11],[49,12,49,15],[49,16,49,19],[49,20,49,24],[49,25,49,29],[49,30,49,34],[49,35,49,39],[49,40,49,44],[49,45,49,49],[49,55,49,59],[49,60,49,64],[49,65,49,69],[49,70,49,74],[49,75,49,79],[49,80,49,99],[49,100,49,104],[49,105,49,109],[49,110,49,114],[50,8,50,19],[50,20,50,22],[50,23,50,25],[50,26,50,28],[50,29,50,31],[50,32,50,34],[50,35,50,37],[50,38,50,40],[50,41,50,43],[50,44,50,46],[50,47,50,49],[50,50,50,52],[50,53,50,55],[50,56,50,58],[50,59,50,114],[51,8,51,19],[51,20,51,114],[52,8,52,19],[52,20,52,75],[52,76,52,83],[52,84,52,114],[53,2,53,114],[1,1,2,1],[3,3,7,8],[4,9,7,12],[4,13,7,67],[6,68,7,72],[9,3,11,24],[9,25,10,44],[9,45,10,47],[9,48,10,70],[9,71,10,92],[9,93,10,111],[9,112,10,114],[12,20,14,33],[12,34,13,83],[12,84,14,90],[12,91,13,107],[12,108,14,114],[13,3,14,14],[18,3,19,22],[18,23,19,24],[18,25,19,45],[18,46,19,47],[18,48,19,68],[18,69,19,70],[18,71,19,90],[18,91,19,92],[18,93,19,112],[18,113,19,114],[23,3,24,9],[23,10,24,17],[23,31,24,38],[23,52,24,59],[23,73,24,80],[23,94,24,101],[25,3,28,9],[25,10,26,17],[25,31,26,39],[25,61,26,71],[25,72,26,80],[25,81,26,92],[27,10,28,17],[27,31,28,39],[27,61,28,71],[27,72,28,80],[27,81,28,92],[29,3,33,8],[29,9,30,15],[29,16,30,42],[29,43,32,45],[29,46,32,51],[29,52,33,59],[29,73,31,82],[29,94,31,103],[30,60,33,72],[30,83,31,93],[30,104,31,114],[31,9,32,15],[31,16,32,42],[32,73,33,82],[32,94,33,103],[34,7,36,8],[34,43,35,45],[34,46,35,51],[34,56,36,57],[34,92,35,94],[34,95,35,100],[35,101,40,114],[37,7,39,8],[37,43,38,45],[37,46,38,51],[37,56,39,57],[37,92,38,94],[37,95,38,100],[40,7,42,8],[40,43,41,45],[40,46,41,51],[40,56,42,57],[40,92,41,94],[40,95,41,100],[42,101,45,114],[43,7,45,8],[43,43,44,45],[43,46,44,51],[43,56,45,57],[43,92,44,94],[43,95,44,100],[46,3,48,7],[46,8,48,11],[46,12,48,15],[46,16,48,19],[46,20,48,24],[46,35,48,39],[46,40,48,44],[46,45,48,49],[46,50,49,54],[46,55,47,79],[46,80,47,114],[47,25,48,29],[47,30,48,34],[50,3,52,7],[3,1,17,1],[34,3,45,6],[34,52,45,55],[46,1,54,1]]}
[]
[null,"8",null,"※",null,null,null,null,null,null,null,null,null,null,null,null,null,null,null,null,null,null,null,null,null,null,null,null,null,null,null,null,null,null,null,null,null,null,null,null,null,null,null,null,null,null,null,null,null,null,null,null,null,null,"※ 種別",null,null,null,null,null,null,null,null,null,null,null,null,null,null,null,null,null,null,"※ 整理番号",null,null,null,null,null,null,null,null,null,null,null,null,null,null,null,null,null,null,null,null,null,null,null,null,null,"※"]
[]
[null,"給与支払報告書（個人別明細書）",null,"支　払\n\nを受け\n\nる　者",null,null,null,null,null,"※区分",null,null,null,null,null,null,null,null,null,null,null,null,null,null,null,null,null,null,null,null,null,null,null,null,null,null,null,null,null,null,null,null,null,null,null,null,null,null,null,null,null,null,null,null,null,null,null,null,null,null,null,null,null,null,null,null,null,null,"（受給者番号）",null,null,null,null,null,null,null,null,null,null,null,null,{"$f":"IF(入力用!$CB$2=\"\",\"\",入力用!$CB$2)","v":""}]
[null,null,null,null,null,null,null,null,null,"住　所",null,null,null,{"$f":"IF(入力用!$M$2=\"\",\"\",入力用!$M$2)","v":""},null,null,null,null,null,null,null,null,null,null,null,null,null,null,null,null,null,null,null,null,null,null,null,null,null,null,null,null,null,null,null,null,null,null,null,null,null,null,null,null,null,null,null,null,null,null,null,null,null,null,null,null,null,null,"（個人番号）",null,null,null,null,null,null,null,null,null,null,{"$f":"IF(入力用!$DO$10=\"\",\"\",入力用!$DO$10)","v":""},null,null,{"$f":"IF(入力用!$DP$10=\"\",\"\",入力用!$DP$10)","v":""},null,null,{"$f":"IF(入力用!$DQ$10=\"\",\"\",入力用!$DQ$10)","v":""},null,null,{"$f":"IF(入力用!$DR$10=\"\",\"\",入力用!$DR$10)","v":""},null,null,{"$f":"IF(入力用!$DS$10=\"\",\"\",入力用!$DS$10)","v":""},null,null,{"$f":"IF(入力用!$DT$10=\"\",\"\",入力用!$DT$10)","v":""},null,null,{"$f":"IF(入力用!$DU$10=\"\",\"\",入力用!$DU$10)","v":""},null,null,{"$f":"IF(入力用!$DV$10=\"\",\"\",入力用!$DV$10)","v":""},null,null,{"$f":"IF(入力用!$DW$10=\"\",\"\",入力用!$DW$10)","v":""},null,null,{"$f":"IF(入力用!$DX$10=\"\",\"\",入力用!$DX$10)","v":""},null,null,{"$f":"IF(入力用!$DY$10=\"\",\"\",入力用!$DY$10)","v":""},null,null,{"$f":"IF(入力用!$DZ$10=\"\",\"\",入力用!$DZ$10)","v":""}]
[null,null,null,null,null,null,null,null,null,null,null,null,null,null,null,null,null,null,null,null,null,null,null,null,null,null,null,null,null,null,null,null,null,null,null,null,null,null,null,null,null,null,null,null,null,null,null,null,null,null,null,null,null,null,null,null,null,null,null,null,null,null,null,null,null,null,null,null,"（役職名）",null,null,null,null,null,null,null,null,{"$f":"IF(入力用!$BY$4=\"\",\"\",入力用!$BY$4)","v":""}]
[null,null,null,null,null,null,null,null,null,null,null,null,null,null,null,null,null,null,null,null,null,null,null,null,null,null,null,null,null,null,null,null,null,null,null,null,null,null,null,null,null,null,null,null,null,null,null,null,null,null,null,null,null,null,null,null,null,null,null,null,null,null,null,null,null,null,null,null,"氏 名",null,null,null,null,"（フリガナ）",null,null,null,null,null,null,null,null,null,{"$f":"IF(入力用!$CE$5=\"\",\"\",入力用!$CE$5)","v":""}]
[null,null,null,null,null,null,null,null,null,null,null,null,null,null,null,null,null,null,null,null,null,null,null,null,null,null,null,null,null,null,null,null,null,null,null,null,null,null,null,null,null,null,null,null,null,null,null,null,null,null,null,null,null,null,null,null,null,null,null,null,null,null,null,null,null,null,null,null,null,null,null,null,null,{"$f":"IF(入力用!$BU$6=\"\",\"\",入力用!$BU$6)","v":""}]
[null,null,null,"種　　　　　別",null,null,null,null,null,null,null,null,null,null,null,null,null,null,null,null,null,null,null,null,null,"支　払　金　額",null,null,null,null,null,null,null,null,null,null,null,null,null,null,null,null,null,null,null,null,null,null,"給与所得控除後の金額\n(調　整　控　除　後)",null,null,null,null,null,null,null,null,null,null,null,null,null,null,null,null,null,null,null,null,null,null,"所得控除の額の合計額",null,null,null,null,null,null,null,null,null,null,null,null,null,null,null,null,null,null,null,null,null,"源 泉 徴 収 税 額"]
[null,null,null,{"$f":"IF(入力用!$C$8=\"\",\"\",入力用!$C$8)","v":""},null,null,null,null,null,null,null,null,null,null,null,null,null,null,null,null,null,null,null,null,null,{"$f":"IF(入力用!$Y$8=\"\",\"\",入力用!$Y$8)","v":""},null,null,null,null,null,null,null,null,null,null,null,null,null,null,null,null,null,null,null,"円",null,null,"円",null,null,null,null,null,null,null,null,null,null,null,null,null,null,null,null,null,null,null,null,null,null,"円",null,null,null,null,null,null,null,null,null,null,null,null,null,null,null,null,null,null,null,null,null,null,null,null,null,null,null,null,null,null,null,null,null,null,null,null,null,null,null,null,"円"]
[]
[null,null,null,null,null,null,null,null,null,null,null,null,null,null,null,null,null,null,null,null,null,null,null,null,null,{"$f":"IF(入力用!$Y$9=\"\",\"\",入力用!$Y$9)","v":""},null,null,null,null,null,null,null,null,null,null,null,null,null,null,null,null,null,null,null,null,null,null,{"$f":"IF(入力用!$AV$9=\"\",\"\",入力用!$AV$9)","v":""},null,null,null,null,null,null,null,null,null,null,null,null,null,null,null,null,null,null,null,null,null,null,{"$f":"IF(入力用!$BS$9=\"\",\"\",入力用!$BS$9)","v":""},null,null,null,null,null,null,null,null,null,null,null,null,null,null,null,null,null,null,null,null,null,{"$f":"IF(入力用!$CO$9=\"\",\"\",入力用!$CO$9)","v":""}]
[null,null,null,"(源泉)控除対象配偶者",null,null,null,null,null,null,null,null,null,null,null,null,null,null,null,null,"配偶者(特別)\n控 除 の 額",null,null,null,null,null,null,null,null,null,null,null,null,null,"控除対象扶養親族等の数\n（配偶者を除く。）",null,null,null,null,null,null,null,null,null,null,null,null,null,null,null,null,null,null,null,null,null,null,null,null,null,null,null,null,null,null,null,null,null,null,null,null,null,null,null,null,null,null,null,null,null,null,null,null,null,"16歳未満\n扶養親族\nの　　数",null,null,null,null,null,null,"障害者の数\n（本人を除く｡）",null,null,null,null,null,null,null,null,null,null,null,null,null,null,null,null,"非居住者\nである\n親族の数"]
[null,null,null," の有無等"]
[null,null,null,null,null,null,null,null,null,null,null,null,null,null,null,"老人",null,null,null,null,null,null,null,null,null,null,null,null,null,null,null,null,null,null,"特　定",null,null,null,null,null,null,null,null,null,null,"老　　人",null,null,null,null,null,null,null,null,null,null,null,null,null,null,null,null,"そ の 他",null,null,null,null,null,null,null,null,null,null,"特　親",null,null,null,null,null,null,null,null,null,null,null,null,null,null,null,null,null,"特　別",null,null,null,null,null,null,null,null,null,null,"その他"]
[null,null,null,"有",null,null,null,null,null,"従有",null,null,null,null,null,null,null,null,null,null,"円",null,null,null,null,null,null,null,null,null,null,null,null,null,"人",null,null,null,null,null,"従人",null,null,null,null,"内",null,null,null,null,null,"人",null,null,null,null,null,"従人",null,null,null,null,"人",null,null,null,null,null,"従人",null,null,null,null,"人",null,null,null,null,null,"従人",null,null,null,null,"人",null,null,null,null,null,null,"内",null,null,null,null,"人",null,null,null,null,null,"人",null,null,null,null,null,"人"]
[null,null,null,{"$f":"IF(入力用!$C$14=\"\",\"\",入力用!$C$14)","v":""},null,null,null,null,null,{"$f":"IF(入力用!$I$14=\"\",\"\",入力用!$I$14)","v":""},null,null,null,null,null,{"$f":"IF(入力用!$O$14=\"\",\"\",入力用!$O$14)","v":""},null,null,null,null,{"$f":"IF(入力用!$T$14=\"\",\"\",入力用!$T$14)","v":""},null,null,null,null,null,null,null,null,null,null,null,null,null,{"$f":"IF(入力用!$AH$14=\"\",\"\",入力用!$AH$14)","v":""},null,null,null,null,null,{"$f":"IF(入力用!$AN$14=\"\",\"\",入力用!$AN$14)","v":""},null,null,null,null,{"$f":"IF(入力用!$AS$14=\"\",\"\",入力用!$AS$14)","v":""},null,null,null,null,null,{"$f":"IF(入力用!$AY$14=\"\",\"\",入力用!$AY$14)","v":""},null,null,null,null,null,{"$f":"IF(入力用!$BE$14=\"\",\"\",入力用!$BE$14)","v":""},null,null,null,null,{"$f":"IF(入力用!$BJ$14=\"\",\"\",入力用!$BJ$14)","v":""},null,null,null,null,null,{"$f":"IF(入力用!$BP$14=\"\",\"\",入力用!$BP$14)","v":""},null,null,null,null,{"$f":"IF(入力用!$BU$14=\"\",\"\",入力用!$BU$14)","v":""},null,null,null,null,null,{"$f":"IF(入力用!$CA$14=\"\",\"\",入力用!$CA$14)","v":""},null,null,null,null,{"$f":"IF(入力用!$CF$14=\"\",\"\",入力用!$CF$14)","v":""},null,null,null,null,null,null,{"$f":"IF(入力用!$CM$14=\"\",\"\",入力用!$CM$14)","v":""},null,null,null,null,{"$f":"IF(入力用!$CR$14=\"\",\"\",入力用!$CR$14)","v":""},null,null,null,null,null,{"$f":"IF(入力用!$CX$14=\"\",\"\",入力用!$CX$14)","v":""},null,null,null,null,null,{"$f":"IF(入力用!$DD$14=\"\",\"\",入力用!$DD$14)","v":""}]
[null,null,null,"特定親族特別控除の額",null,null,null,null,null,null,null,null,null,null,null,null,null,null,null,null,null,null,null,null,null,"社会保険料等の金額",null,null,null,null,null,null,null,null,null,null,null,null,null,null,null,null,null,null,null,null,null,null,"生命保険料の控除額",null,null,null,null,null,null,null,null,null,null,null,null,null,null,null,null,null,null,null,null,null,null,"地震保険料の控除額",null,null,null,null,null,null,null,null,null,null,null,null,null,null,null,null,null,null,null,null,null,"住宅借入金等特別控除の額"]
[null,null,null,null,null,null,null,null,null,null,null,null,null,null,null,null,null,null,null,null,null,null,null,"円",null,{"$f":"IF(入力用!$Y$16=\"\",\"\",入力用!$Y$16)","v":""},null,null,null,null,null,null,null,null,null,null,null,null,null,null,null,null,null,null,null,null,"円",null,null,null,null,null,null,null,null,null,null,null,null,null,null,null,null,null,null,null,null,null,null,"円",null,{"$f":"IF(入力用!$C$16=\"\",\"\",入力用!$C$16)","v":""},null,null,null,null,null,null,null,null,null,null,null,null,null,null,null,null,null,null,null,"円",null,{"$f":"IF(入力用!$C$16=\"\",\"\",入力用!$C$16)","v":""},null,null,null,null,null,null,null,null,null,null,null,null,null,null,null,null,null,null,null,"円"]
[]
[null,null,null,{"$f":"IF(入力用!$C$17=\"\",\"\",入力用!$C$17)","v":""},null,null,null,null,null,null,null,null,null,null,null,null,null,null,null,null,null,null,null,null,null,{"$f":"IF(入力用!$Y$17=\"\",\"\",入力用!$Y$17)","v":""},null,null,null,null,null,null,null,null,null,null,null,null,null,null,null,null,null,null,null,null,null,null,{"$f":"IF(入力用!$AV$17=\"\",\"\",入力用!$AV$17)","v":""},null,null,null,null,null,null,null,null,null,null,null,null,null,null,null,null,null,null,null,null,null,null,{"$f":"IF(入力用!$BS$17=\"\",\"\",入力用!$BS$17)","v":""},null,null,null,null,null,null,null,null,null,null,null,null,null,null,null,null,null,null,null,null,null,{"$f":"IF(入力用!$CO$17=\"\",\"\",入力用!$CO$17)","v":""}]
[null,null,null,"（摘要）"]
[null,null,null,{"$f":"IF(入力用!$C$19=\"\",\"\",入力用!$C$19)","v":""}]
[null,null,null,"生命保険\n料の金額\nの内訳",null,null,null,null,null,null,"新生命\n保険料\nの金額",null,null,null,null,null,null,null,"円",null,null,null,null,null,null,null,null,null,null,null,null,"旧生命\n保険料\nの金額",null,null,null,null,null,null,null,"円",null,null,null,null,null,null,null,null,null,null,null,null,"介護医療\n保険料\nの金額",null,null,null,null,null,null,null,"円",null,null,null,null,null,null,null,null,null,null,null,null,"新個人年\n金保険料\nの金額",null,null,null,null,null,null,null,"円",null,null,null,null,null,null,null,null,null,null,null,null,"旧個人年\n金保険料\nの金額",null,null,null,null,null,null,null,"円"]
[null,null,null,null,null,null,null,null,null,null,null,null,null,null,null,null,null,null,{"$f":"IF(入力用!$R$21=\"\",\"\",入力用!$R$21)","v":""},null,null,null,null,null,null,null,null,null,null,null,null,null,null,null,null,null,null,null,null,{"$f":"IF(入力用!$AM$21=\"\",\"\",入力用!$AM$21)","v":""},null,null,null,null,null,null,null,null,null,null,null,null,null,null,null,null,null,null,null,null,{"$f":"IF(入力用!$BH$21=\"\",\"\",入力用!$BH$21)","v":""},null,null,null,null,null,null,null,null,null,null,null,null,null,null,null,null,null,null,null,null,{"$f":"IF(入力用!$CC$21=\"\",\"\",入力用!$CC$21)","v":""},null,null,null,null,null,null,null,null,null,null,null,null,null,null,null,null,null,null,null,null,{"$f":"IF(入力用!$CX$21=\"\",\"\",入力用!$CX$21)","v":""}]
[null,null,null,"住宅借入\n金等特別\n控除の額\nの内訳",null,null,null,null,null,null,"住宅借入金\n等特別控除\n適用数",null,null,null,null,null,null,null,null,null,null,null,null,null,null,null,null,null,null,null,null,"居住開始年月\n日（１回目）",null,null,null,null,null,null,null,null,"年",null,null,null,null,null,null,"月",null,null,null,null,null,null,"日",null,null,null,null,null,null,"住宅借入金等\n特別控除区分\n（1回目）",null,null,null,null,null,null,null,null,null,null,{"$f":"IF(入力用!$BT$22=\"\",\"\",入力用!$BT$22)","v":""},null,null,null,null,null,null,null,null,"住宅借入金等\n年　末　残　高\n（1回目）",null,null,null,null,null,null,null,null,null,null,null,"円"]
[null,null,null,null,null,null,null,null,null,null,null,null,null,null,null,null,null,null,{"$f":"IF(入力用!$R$23=\"\",\"\",入力用!$R$23)","v":""},null,null,null,null,null,null,null,null,null,null,null,null,null,null,null,null,null,null,null,null,null,{"$f":"IF(入力用!$AN$23=\"\",\"\",入力用!$AN$23)","v":""},null,null,null,null,null,null,{"$f":"IF(入力用!$AU$23=\"\",\"\",入力用!$AU$23)","v":""},null,null,null,null,null,null,{"$f":"IF(入力用!$BB$23=\"\",\"\",入力用!$BB$23)","v":""},null,null,null,null,null,null,null,null,null,null,null,null,null,null,null,null,null,null,null,null,null,null,null,null,null,null,null,null,null,null,null,null,null,null,null,null,null,null,{"$f":"IF(入力用!$CO$23=\"\",\"\",入力用!$CO$23)","v":""}]
[null,null,null,null,null,null,null,null,null,null,"住宅借入金\n等特別控除\n可能額",null,null,null,null,null,null,null,"円",null,null,null,null,null,null,null,null,null,null,null,null,"居住開始年月\n日（２回目）",null,null,null,null,null,null,null,null,"年",null,null,null,null,null,null,"月",null,null,null,null,null,null,"日",null,null,null,null,null,null,"住宅借入金等\n特別控除区分\n（2回目）",null,null,null,null,null,null,null,null,null,null,{"$f":"IF(入力用!$BT$24=\"\",\"\",入力用!$BT$24)","v":""},null,null,null,null,null,null,null,null,"住宅借入金等\n年　末　残　高\n（2回目）",null,null,null,null,null,null,null,null,null,null,null,"円"]
[null,null,null,null,null,null,null,null,null,null,null,null,null,null,null,null,null,null,{"$f":"IF(入力用!$R$25=\"\",\"\",入力用!$R$25)","v":""},null,null,null,null,null,null,null,null,null,null,null,null,null,null,null,null,null,null,null,null,null,{"$f":"IF(入力用!$AN$25=\"\",\"\",入力用!$AN$25)","v":""},null,null,null,null,null,null,{"$f":"IF(入力用!$AU$25=\"\",\"\",入力用!$AU$25)","v":""},null,null,null,null,null,null,{"$f":"IF(入力用!$BB$25=\"\",\"\",入力用!$BB$25)","v":""},null,null,null,null,null,null,null,null,null,null,null,null,null,null,null,null,null,null,null,null,null,null,null,null,null,null,null,null,null,null,null,null,null,null,null,null,null,null,{"$f":"IF(入力用!$CO$25=\"\",\"\",入力用!$CO$25)","v":""}]
[null,null,null,"(源泉･特別)\n控除対象\n配偶者",null,null,null,null,null,"(フリガナ)",null,null,null,null,null,null,{"$f":"IF(入力用!$P$26=\"\",\"\",入力用!$P$26)","v":""},null,null,null,null,null,null,null,null,null,null,null,null,null,null,null,null,null,null,null,null,null,null,null,null,null,null,"区分",null,null,{"$f":"IF(入力用!$AT$26=\"\",\"\",入力用!$AT$26)","v":""},null,null,null,null,null,"配偶者の\n合計所得",null,null,null,null,null,null,null,"円",null,null,null,null,null,null,null,null,null,null,null,null,"国民年金保険\n料等の金額",null,null,null,null,null,null,null,null,null,"円",null,null,null,null,null,null,null,null,null,null,"旧長期損害\n保険料の金額",null,null,null,null,null,null,null,null,null,"円"]
[null,null,null,null,null,null,null,null,null,null,null,null,null,null,null,null,null,null,null,null,null,null,null,null,null,null,null,null,null,null,null,null,null,null,null,null,null,null,null,null,null,null,null,null,null,null,null,null,null,null,null,null,null,null,null,null,null,null,null,null,{"$f":"IF(入力用!$BH$27=\"\",\"\",入力用!$BH$27)","v":""},null,null,null,null,null,null,null,null,null,null,null,null,null,null,null,null,null,null,null,null,null,null,{"$f":"IF(入力用!$CE$27=\"\",\"\",入力用!$CE$27)","v":""},null,null,null,null,null,null,null,null,null,null,null,null,null,null,null,null,null,null,null,null,{"$f":"IF(入力用!$CZ$27=\"\",\"\",入力用!$CZ$27)","v":""}]
[null,null,null,null,null,null,null,null,null,"氏　　名",null,null,null,null,null,null,{"$f":"IF(入力用!$P$28=\"\",\"\",入力用!$P$28)","v":""}]
[null,null,null,null,null,null,null,null,null,null,null,null,null,null,null,null,null,null,null,null,null,null,null,null,null,null,null,null,null,null,null,null,null,null,null,null,null,null,null,null,null,null,null,null,null,null,null,null,null,null,null,null,null,null,null,null,null,null,null,null,null,null,null,null,null,null,null,null,null,null,null,null,null,"基礎控除の額",null,null,null,null,null,null,null,null,null,"円",null,null,null,null,null,null,null,null,null,null,"所得金額\n調整控除額",null,null,null,null,null,null,null,null,null,"円"]
[null,null,null,null,null,null,null,null,null,"個人番号",null,null,null,null,null,null,{"$f":"IF(入力用!$DO$23=\"\",\"\",入力用!$DO$23)","v":""},null,null,{"$f":"IF(入力用!$DP$23=\"\",\"\",入力用!$DP$23)","v":""},null,null,{"$f":"IF(入力用!$DQ$23=\"\",\"\",入力用!$DQ$23)","v":""},null,null,{"$f":"IF(入力用!$DR$23=\"\",\"\",入力用!$DR$23)","v":""},null,null,{"$f":"IF(入力用!$DS$23=\"\",\"\",入力用!$DS$23)","v":""},null,null,{"$f":"IF(入力用!$DT$23=\"\",\"\",入力用!$DT$23)","v":""},null,null,{"$f":"IF(入力用!$DU$23=\"\",\"\",入力用!$DU$23)","v":""},null,null,{"$f":"IF(入力用!$DV$23=\"\",\"\",入力用!$DV$23)","v":""},null,null,{"$f":"IF(入力用!$DW$23=\"\",\"\",入力用!$DW$23)","v":""},null,null,{"$f":"IF(入力用!$DX$23=\"\",\"\",入力用!$DX$23)","v":""},null,null,{"$f":"IF(入力用!$DY$23=\"\",\"\",入力用!$DY$23)","v":""},null,null,{"$f":"IF(入力用!$DZ$23=\"\",\"\",入力用!$DZ$23)","v":""},null,null,null,null,null,null,null,null,null,null,null,null,null,null,null,null,null,null,null,null,null,null,null,null,null,null,null,null,null,null,null,null,null,{"$f":"IF(入力用!$CE$30=\"\",\"\",入力用!$CE$30)","v":""},null,null,null,null,null,null,null,null,null,null,null,null,null,null,null,null,null,null,null,null,{"$f":"IF(入力用!$CZ$30=\"\",\"\",入力用!$CZ$30)","v":""}]
[null,null,null,"控除対象扶養親族等",null,null,null,"１",null,"(フリガナ)",null,null,null,null,null,null,{"$f":"IF(入力用!$P$31=\"\",\"\",入力用!$P$31)","v":""},null,null,null,null,null,null,null,null,null,null,null,null,null,null,null,null,null,null,null,null,null,null,null,null,null,null,"区分",null,null,{"$f":"IF(入力用!$AT$31=\"\",\"\",入力用!$AT$31)","v":""},null,null,null,null,null,"16歳未満の扶養親族",null,null,null,"１",null,"(フリガナ)",null,null,null,null,null,null,{"$f":"IF(入力用!$BM$31=\"\",\"\",入力用!$BM$31)","v":""},null,null,null,null,null,null,null,null,null,null,null,null,null,null,null,null,null,null,null,null,null,null,null,null,null,null,"区分",null,null,{"$f":"IF(入力用!$CQ$31=\"\",\"\",入力用!$CQ$31)","v":""},null,null,null,null,null,"5人目以降の控除対象\n扶養親族等の個人番号"]
[null,null,null,null,null,null,null,null,null,"氏　　名",null,null,null,null,null,null,{"$f":"IF(入力用!$P$32=\"\",\"\",入力用!$P$32)","v":""},null,null,null,null,null,null,null,null,null,null,null,null,null,null,null,null,null,null,null,null,null,null,null,null,null,null,null,null,null,null,null,null,null,null,null,null,null,null,null,null,null,"氏　　名",null,null,null,null,null,null,{"$f":"IF(入力用!$BM$32=\"\",\"\",入力用!$BM$32)","v":""},null,null,null,null,null,null,null,null,null,null,null,null,null,null,null,null,null,null,null,null,null,null,null,null,null,null,null,null,null,null,null,null,null,null,null,{"$f":"IF(入力用!$CW$32=\"\",\"\",入力用!$CW$32)","v":""}]
[null,null,null,null,null,null,null,null,null,"個人番号",null,null,null,null,null,null,{"$f":"IF(入力用!$DO$24=\"\",\"\",入力用!$DO$24)","v":""},null,null,{"$f":"IF(入力用!$DP$24=\"\",\"\",入力用!$DP$24)","v":""},null,null,{"$f":"IF(入力用!$DQ$24=\"\",\"\",入力用!$DQ$24)","v":""},null,null,{"$f":"IF(入力用!$DR$24=\"\",\"\",入力用!$DR$24)","v":""},null,null,{"$f":"IF(入力用!$DS$24=\"\",\"\",入力用!$DS$24)","v":""},null,null,{"$f":"IF(入力用!$DT$24=\"\",\"\",入力用!$DT$24)","v":""},null,null,{"$f":"IF(入力用!$DU$24=\"\",\"\",入力用!$DU$24)","v":""},null,null,{"$f":"IF(入力用!$DV$24=\"\",\"\",入力用!$DV$24)","v":""},null,null,{"$f":"IF(入力用!$DW$24=\"\",\"\",入力用!$DW$24)","v":""},null,null,{"$f":"IF(入力用!$DX$24=\"\",\"\",入力用!$DX$24)","v":""},null,null,{"$f":"IF(入力用!$DY$24=\"\",\"\",入力用!$DY$24)","v":""},null,null,{"$f":"IF(入力用!$DZ$24=\"\",\"\",入力用!$DZ$24)","v":""},null,null,null,null,null,null,null,null,"個人番号",null,null,null,null,null,null,{"$f":"IF(入力用!$DO$28=\"\",\"\",入力用!$DO$28)","v":""},null,null,{"$f":"IF(入力用!$DP$28=\"\",\"\",入力用!$DP$28)","v":""},null,null,{"$f":"IF(入力用!$DQ$28=\"\",\"\",入力用!$DQ$28)","v":""},null,null,{"$f":"IF(入力用!$DR$28=\"\",\"\",入力用!$DR$28)","v":""},null,null,{"$f":"IF(入力用!$DS$28=\"\",\"\",入力用!$DS$28)","v":""},null,null,{"$f":"IF(入力用!$DT$28=\"\",\"\",入力用!$DT$28)","v":""},null,null,{"$f":"IF(入力用!$DU$28=\"\",\"\",入力用!$DU$28)","v":""},null,null,{"$f":"IF(入力用!$DV$28=\"\",\"\",入力用!$DV$28)","v":""},null,null,{"$f":"IF(入力用!$DW$28=\"\",\"\",入力用!$DW$28)","v":""},null,null,{"$f":"IF(入力用!$DX$28=\"\",\"\",入力用!$DX$28)","v":""},null,null,{"$f":"IF(入力用!$DY$28=\"\",\"\",入力用!$DY$28)","v":""},null,null,{"$f":"IF(入力用!$DZ$28=\"\",\"\",入力用!$DZ$28)","v":""}]
[null,null,null,null,null,null,null,"２",null,"(フリガナ)",null,null,null,null,null,null,{"$f":"IF(入力用!$P$34=\"\",\"\",入力用!$P$34)","v":""},null,null,null,null,null,null,null,null,null,null,null,null,null,null,null,null,null,null,null,null,null,null,null,null,null,null,"区分",null,null,{"$f":"IF(入力用!$AT$34=\"\",\"\",入力用!$AT$34)","v":""},null,null,null,null,null,null,null,null,null,"２",null,"(フリガナ)",null,null,null,null,null,null,{"$f":"IF(入力用!$BM$34=\"\",\"\",入力用!$BM$34)","v":""},null,null,null,null,null,null,null,null,null,null,null,null,null,null,null,null,null,null,null,null,null,null,null,null,null,null,"区分",null,null,{"$f":"IF(入力用!$CQ$34=\"\",\"\",入力用!$CQ$34)","v":""}]
[null,null,null,null,null,null,null,null,null,"氏　　名",null,null,null,null,null,null,{"$f":"IF(入力用!$P$35=\"\",\"\",入力用!$P$35)","v":""},null,null,null,null,null,null,null,null,null,null,null,null,null,null,null,null,null,null,null,null,null,null,null,null,null,null,null,null,null,null,null,null,null,null,null,null,null,null,null,null,null,"氏　　名",null,null,null,null,null,null,{"$f":"IF(入力用!$BM$35=\"\",\"\",入力用!$BM$35)","v":""}]
[null,null,null,null,null,null,null,null,null,"個人番号",null,null,null,null,null,null,{"$f":"IF(入力用!$DO$25=\"\",\"\",入力用!$DO$25)","v":""},null,null,{"$f":"IF(入力用!$DP$25=\"\",\"\",入力用!$DP$25)","v":""},null,null,{"$f":"IF(入力用!$DQ$25=\"\",\"\",入力用!$DQ$25)","v":""},null,null,{"$f":"IF(入力用!$DR$25=\"\",\"\",入力用!$DR$25)","v":""},null,null,{"$f":"IF(入力用!$DS$25=\"\",\"\",入力用!$DS$25)","v":""},null,null,{"$f":"IF(入力用!$DT$25=\"\",\"\",入力用!$DT$25)","v":""},null,null,{"$f":"IF(入力用!$DU$25=\"\",\"\",入力用!$DU$25)","v":""},null,null,{"$f":"IF(入力用!$DV$25=\"\",\"\",入力用!$DV$25)","v":""},null,null,{"$f":"IF(入力用!$DW$25=\"\",\"\",入力用!$DW$25)","v":""},null,null,{"$f":"IF(入力用!$DX$25=\"\",\"\",入力用!$DX$25)","v":""},null,null,{"$f":"IF(入力用!$DY$25=\"\",\"\",入力用!$DY$25)","v":""},null,null,{"$f":"IF(入力用!$DZ$25=\"\",\"\",入力用!$DZ$25)","v":""},null,null,null,null,null,null,null,null,"個人番号",null,null,null,null,null,null,{"$f":"IF(入力用!$DO$29=\"\",\"\",入力用!$DO$29)","v":""},null,null,{"$f":"IF(入力用!$DP$29=\"\",\"\",入力用!$DP$29)","v":""},null,null,{"$f":"IF(入力用!$DQ$29=\"\",\"\",入力用!$DQ$29)","v":""},null,null,{"$f":"IF(入力用!$DR$29=\"\",\"\",入力用!$DR$29)","v":""},null,null,{"$f":"IF(入力用!$DS$29=\"\",\"\",入力用!$DS$29)","v":""},null,null,{"$f":"IF(入力用!$DT$29=\"\",\"\",入力用!$DT$29)","v":""},null,null,{"$f":"IF(入力用!$DU$29=\"\",\"\",入力用!$DU$29)","v":""},null,null,{"$f":"IF(入力用!$DV$29=\"\",\"\",入力用!$DV$29)","v":""},null,null,{"$f":"IF(入力用!$DW$29=\"\",\"\",入力用!$DW$29)","v":""},null,null,{"$f":"IF(入力用!$DX$29=\"\",\"\",入力用!$DX$29)","v":""},null,null,{"$f":"IF(入力用!$DY$29=\"\",\"\",入力用!$DY$29)","v":""},null,null,{"$f":"IF(入力用!$DZ$29=\"\",\"\",入力用!$DZ$29)","v":""}]
[null,null,null,null,null,null,null,"３",null,"(フリガナ)",null,null,null,null,null,null,{"$f":"IF(入力用!$P$37=\"\",\"\",入力用!$P$37)","v":""},null,null,null,null,null,null,null,null,null,null,null,null,null,null,null,null,null,null,null,null,null,null,null,null,null,null,"区分",null,null,{"$f":"IF(入力用!$AT$37=\"\",\"\",入力用!$AT$37)","v":""},null,null,null,null,null,null,null,null,null,"３",null,"(フリガナ)",null,null,null,null,null,null,{"$f":"IF(入力用!$BM$37=\"\",\"\",入力用!$BM$37)","v":""},null,null,null,null,null,null,null,null,null,null,null,null,null,null,null,null,null,null,null,null,null,null,null,null,null,null,"区分",null,null,{"$f":"IF(入力用!$CQ$37=\"\",\"\",入力用!$CQ$37)","v":""}]
[null,null,null,null,null,null,null,null,null,"氏　　名",null,null,null,null,null,null,{"$f":"IF(入力用!$P$38=\"\",\"\",入力用!$P$38)","v":""},null,null,null,null,null,null,null,null,null,null,null,null,null,null,null,null,null,null,null,null,null,null,null,null,null,null,null,null,null,null,null,null,null,null,null,null,null,null,null,null,null,"氏　　名",null,null,null,null,null,null,{"$f":"IF(入力用!$BM$38=\"\",\"\",入力用!$BM$38)","v":""},null,null,null,null,null,null,null,null,null,null,null,null,null,null,null,null,null,null,null,null,null,null,null,null,null,null,null,null,null,null,null,null,null,null,null,"5人目以降の16歳未満\nの扶養親族の個人番号"]
[null,null,null,null,null,null,null,null,null,"個人番号",null,null,null,null,null,null,{"$f":"IF(入力用!$DO$26=\"\",\"\",入力用!$DO$26)","v":""},null,null,{"$f":"IF(入力用!$DP$26=\"\",\"\",入力用!$DP$26)","v":""},null,null,{"$f":"IF(入力用!$DQ$26=\"\",\"\",入力用!$DQ$26)","v":""},null,null,{"$f":"IF(入力用!$DR$26=\"\",\"\",入力用!$DR$26)","v":""},null,null,{"$f":"IF(入力用!$DS$26=\"\",\"\",入力用!$DS$26)","v":""},null,null,{"$f":"IF(入力用!$DT$26=\"\",\"\",入力用!$DT$26)","v":""},null,null,{"$f":"IF(入力用!$DU$26=\"\",\"\",入力用!$DU$26)","v":""},null,null,{"$f":"IF(入力用!$DV$26=\"\",\"\",入力用!$DV$26)","v":""},null,null,{"$f":"IF(入力用!$DW$26=\"\",\"\",入力用!$DW$26)","v":""},null,null,{"$f":"IF(入力用!$DX$26=\"\",\"\",入力用!$DX$26)","v":""},null,null,{"$f":"IF(入力用!$DY$26=\"\",\"\",入力用!$DY$26)","v":""},null,null,{"$f":"IF(入力用!$DZ$26=\"\",\"\",入力用!$DZ$26)","v":""},null,null,null,null,null,null,null,null,"個人番号",null,null,null,null,null,null,{"$f":"IF(入力用!$DO$30=\"\",\"\",入力用!$DO$30)","v":""},null,null,{"$f":"IF(入力用!$DP$30=\"\",\"\",入力用!$DP$30)","v":""},null,null,{"$f":"IF(入力用!$DQ$30=\"\",\"\",入力用!$DQ$30)","v":""},null,null,{"$f":"IF(入力用!$DR$30=\"\",\"\",入力用!$DR$30)","v":""},null,null,{"$f":"IF(入力用!$DS$30=\"\",\"\",入力用!$DS$30)","v":""},null,null,{"$f":"IF(入力用!$DT$30=\"\",\"\",入力用!$DT$30)","v":""},null,null,{"$f":"IF(入力用!$DU$30=\"\",\"\",入力用!$DU$30)","v":""},null,null,{"$f":"IF(入力用!$DV$30=\"\",\"\",入力用!$DV$30)","v":""},null,null,{"$f":"IF(入力用!$DW$30=\"\",\"\",入力用!$DW$30)","v":""},null,null,{"$f":"IF(入力用!$DX$30=\"\",\"\",入力用!$DX$30)","v":""},null,null,{"$f":"IF(入力用!$DY$30=\"\",\"\",入力用!$DY$30)","v":""},null,null,{"$f":"IF(入力用!$DZ$30=\"\",\"\",入力用!$DZ$30)","v":""},null,null,{"$f":"IF(入力用!$CW$39=\"\",\"\",入力用!$CW$39)","v":""}]
[null,null,null,null,null,null,null,"４",null,"(フリガナ)",null,null,null,null,null,null,{"$f":"IF(入力用!$P$40=\"\",\"\",入力用!$P$40)","v":""},null,null,null,null,null,null,null,null,null,null,null,null,null,null,null,null,null,null,null,null,null,null,null,null,null,null,"区分",null,null,{"$f":"IF(入力用!$AT$40=\"\",\"\",入力用!$AT$40)","v":""},null,null,null,null,null,null,null,null,null,"４",null,"(フリガナ)",null,null,null,null,null,null,{"$f":"IF(入力用!$BM$40=\"\",\"\",入力用!$BM$40)","v":""},null,null,null,null,null,null,null,null,null,null,null,null,null,null,null,null,null,null,null,null,null,null,null,null,null,null,"区分",null,null,{"$f":"IF(入力用!$CQ$40=\"\",\"\",入力用!$CQ$40)","v":""}]
[null,null,null,null,null,null,null,null,null,"氏　　名",null,null,null,null,null,null,{"$f":"IF(入力用!$P$41=\"\",\"\",入力用!$P$41)","v":""},null,null,null,null,null,null,null,null,null,null,null,null,null,null,null,null,null,null,null,null,null,null,null,null,null,null,null,null,null,null,null,null,null,null,null,null,null,null,null,null,null,"氏　　名",null,null,null,null,null,null,{"$f":"IF(入力用!$BM$41=\"\",\"\",入力用!$BM$41)","v":""}]
[null,null,null,null,null,null,null,null,null,"個人番号",null,null,null,null,null,null,{"$f":"IF(入力用!$DO$27=\"\",\"\",入力用!$DO$27)","v":""},null,null,{"$f":"IF(入力用!$DP$27=\"\",\"\",入力用!$DP$27)","v":""},null,null,{"$f":"IF(入力用!$DQ$27=\"\",\"\",入力用!$DQ$27)","v":""},null,null,{"$f":"IF(入力用!$DR$27=\"\",\"\",入力用!$DR$27)","v":""},null,null,{"$f":"IF(入力用!$DS$27=\"\",\"\",入力用!$DS$27)","v":""},null,null,{"$f":"IF(入力用!$DT$27=\"\",\"\",入力用!$DT$27)","v":""},null,null,{"$f":"IF(入力用!$DU$27=\"\",\"\",入力用!$DU$27)","v":""},null,null,{"$f":"IF(入力用!$DV$27=\"\",\"\",入力用!$DV$27)","v":""},null,null,{"$f":"IF(入力用!$DW$27=\"\",\"\",入力用!$DW$27)","v":""},null,null,{"$f":"IF(入力用!$DX$27=\"\",\"\",入力用!$DX$27)","v":""},null,null,{"$f":"IF(入力用!$DY$27=\"\",\"\",入力用!$DY$27)","v":""},null,null,{"$f":"IF(入力用!$DZ$27=\"\",\"\",入力用!$DZ$27)","v":""},null,null,null,null,null,null,null,null,"個人番号",null,null,null,null,null,null,{"$f":"IF(入力用!$DO$31=\"\",\"\",入力用!$DO$31)","v":""},null,null,{"$f":"IF(入力用!$DP$31=\"\",\"\",入力用!$DP$31)","v":""},null,null,{"$f":"IF(入力用!$DQ$31=\"\",\"\",入力用!$DQ$31)","v":""},null,null,{"$f":"IF(入力用!$DR$31=\"\",\"\",入力用!$DR$31)","v":""},null,null,{"$f":"IF(入力用!$DS$31=\"\",\"\",入力用!$DS$31)","v":""},null,null,{"$f":"IF(入力用!$DT$31=\"\",\"\",入力用!$DT$31)","v":""},null,null,{"$f":"IF(入力用!$DU$31=\"\",\"\",入力用!$DU$31)","v":""},null,null,{"$f":"IF(入力用!$DV$31=\"\",\"\",入力用!$DV$31)","v":""},null,null,{"$f":"IF(入力用!$DW$31=\"\",\"\",入力用!$DW$31)","v":""},null,null,{"$f":"IF(入力用!$DX$31=\"\",\"\",入力用!$DX$31)","v":""},null,null,{"$f":"IF(入力用!$DY$31=\"\",\"\",入力用!$DY$31)","v":""},null,null,{"$f":"IF(入力用!$DZ$31=\"\",\"\",入力用!$DZ$31)","v":""}]
[null,"（市区町村提出用）",null,"未成年者",null,null,null,null,"外国人",null,null,null,"死亡退職",null,null,null,"災害者",null,null,null,"乙欄",null,null,null,null,"本人が障害者",null,null,null,null,null,null,null,null,null,"寡婦",null,null,null,null,"ひとり親",null,null,null,null,"勤労学生",null,null,null,null,null,null,null,null,null,"中途就・退職",null,null,null,null,null,null,null,null,null,null,null,null,null,null,null,null,null,null,null,null,null,null,null,null,"受給者生年月日"]
[null,null,null,null,null,null,null,null,null,null,null,null,null,null,null,null,null,null,null,null,null,null,null,null,null,"特別",null,null,null,null,"その他"]
[null,null,null,null,null,null,null,null,null,null,null,null,null,null,null,null,null,null,null,null,null,null,null,null,null,null,null,null,null,null,null,null,null,null,null,null,null,null,null,null,null,null,null,null,null,null,null,null,null,null,null,null,null,null,null,"就職",null,null,null,null,"退職",null,null,null,null,"年",null,null,null,null,"月",null,null,null,null,"日",null,null,null,null,"元　　　号",null,null,null,null,null,null,null,null,null,null,null,null,null,null,null,null,null,null,null,"年",null,null,null,null,"月",null,null,null,null,"日"]
[null,null,null,{"$f":"IF(入力用!$C$46=\"\",\"\",入力用!$C$46)","v":""},null,null,null,null,{"$f":"IF(入力用!$H$46=\"\",\"\",入力用!$H$46)","v":""},null,null,null,{"$f":"IF(入力用!$L$46=\"\",\"\",入力用!$L$46)","v":""},null,null,null,{"$f":"IF(入力用!$P$46=\"\",\"\",入力用!$P$46)","v":""},null,null,null,{"$f":"IF(入力用!$T$46=\"\",\"\",入力用!$T$46)","v":""},null,null,null,null,{"$f":"IF(入力用!$Y$46=\"\",\"\",入力用!$Y$46)","v":""},null,null,null,null,{"$f":"IF(入力用!$AD$46=\"\",\"\",入力用!$AD$46)","v":""},null,null,null,null,{"$f":"IF(入力用!$AI$46=\"\",\"\",入力用!$AI$46)","v":""},null,null,null,null,{"$f":"IF(入力用!$AN$46=\"\",\"\",入力用!$AN$46)","v":""},null,null,null,null,{"$f":"IF(入力用!$AS$46=\"\",\"\",入力用!$AS$46)","v":""},null,null,null,null,null,null,null,null,null,{"$f":"IF(入力用!$BC$46=\"\",\"\",入力用!$BC$46)","v":""},null,null,null,null,{"$f":"IF(入力用!$BH$46=\"\",\"\",入力用!$BH$46)","v":""},null,null,null,null,7,null,null,null,null,{"$f":"IF(入力用!$BR$46=\"\",\"\",入力用!$BR$46)","v":""},null,null,null,null,{"$f":"IF(入力用!$BW$46=\"\",\"\",入力用!$BW$46)","v":""},null,null,null,null,{"$f":"IF(入力用!$CB$46=\"\",\"\",入力用!$CB$46)","v":""},null,null,null,null,null,null,null,null,null,null,null,null,null,null,null,null,null,null,null,{"$f":"IF(入力用!$CV$46=\"\",\"\",入力用!$CV$46)","v":""},null,null,null,null,{"$f":"IF(入力用!$DA$46=\"\",\"\",入力用!$DA$46)","v":""},null,null,null,null,{"$f":"IF(入力用!$DF$46=\"\",\"\",入力用!$DF$46)","v":""}]
[null,null,null,"支　払　者",null,null,null,null,"個人番号又は\n法人番号",null,null,null,null,null,null,null,null,null,null,null,{"$f":"IF(入力用!$DN$32=\"\",\"\",IF(入力用!$DN$32=0,\"\",入力用!$DN$34))","v":""},null,null,{"$f":"IF(入力用!$DO$32=\"\",\"\",入力用!$DO$32)","v":""},null,null,{"$f":"IF(入力用!$DP$32=\"\",\"\",入力用!$DP$32)","v":""},null,null,{"$f":"IF(入力用!$DQ$32=\"\",\"\",入力用!$DQ$32)","v":""},null,null,{"$f":"IF(入力用!$DR$32=\"\",\"\",入力用!$DR$32)","v":""},null,null,{"$f":"IF(入力用!$DS$32=\"\",\"\",入力用!$DS$32)","v":""},null,null,{"$f":"IF(入力用!$DT$32=\"\",\"\",入力用!$DT$32)","v":""},null,null,{"$f":"IF(入力用!$DU$32=\"\",\"\",入力用!$DU$32)","v":""},null,null,{"$f":"IF(入力用!$DV$32=\"\",\"\",入力用!$DV$32)","v":""},null,null,{"$f":"IF(入力用!$DW$32=\"\",\"\",入力用!$DW$32)","v":""},null,null,{"$f":"IF(入力用!$DX$32=\"\",\"\",入力用!$DX$32)","v":""},null,null,{"$f":"IF(入力用!$DY$32=\"\",\"\",入力用!$DY$32)","v":""},null,null,{"$f":"IF(入力用!$DZ$32=\"\",\"\",入力用!$DZ$32)","v":""},null,null,"（右詰で記載してください。）"]
[null,null,null,null,null,null,null,null,"住所（居所）\n又は所在地",null,null,null,null,null,null,null,null,null,null,null,{"$f":"IF(入力用!$T$48=\"\",\"\",入力用!$T$48)","v":""}]
[null,null,null,null,null,null,null,null,"氏名又は名称",null,null,null,null,null,null,null,null,null,null,null,{"$f":"IF(入力用!$T$49=\"\",\"\",入力用!$T$49)","v":""},null,null,null,null,null,null,null,null,null,null,null,null,null,null,null,null,null,null,null,null,null,null,null,null,null,null,null,null,null,null,null,null,null,null,null,null,null,null,null,null,null,null,null,null,null,null,null,null,null,null,null,null,null,null,null,"（電話）",null,null,null,null,null,null,null,{"$f":"IF(入力用!$CF$49=\"\",\"\",入力用!$CF$49)","v":""}]
[null,null,"（摘要）に前職分の加算額、支払者等を記載してください。"]

{"sheet":"源泉徴収票（受給者交付用）","index":2,"n_rows":54,"n_cols":113,"rows_kept":54,"cut":false,"hidden":false,"merged":[[3,68,3,80],[3,81,3,114],[4,68,4,114],[5,68,5,76],[5,77,5,114],[6,73,6,82],[6,83,6,114],[7,73,7,114],[8,3,8,24],[8,25,8,47],[8,48,8,70],[8,71,8,92],[8,93,8,114],[11,25,11,44],[11,45,11,47],[11,48,11,67],[11,68,11,70],[11,71,11,89],[11,90,11,92],[11,93,11,111],[11,112,11,114],[12,3,12,19],[14,15,14,19],[14,34,14,44],[14,45,14,61],[14,62,14,72],[14,73,14,83],[14,91,14,101],[14,102,14,107],[15,3,15,8],[15,9,15,14],[15,15,15,19],[15,20,15,33],[15,34,15,39],[15,40,15,44],[15,45,15,50],[15,51,15,56],[15,57,15,61],[15,62,15,67],[15,68,15,72],[15,73,15,78],[15,79,15,83],[15,84,15,90],[15,91,15,95],[15,96,15,101],[15,102,15,107],[15,108,15,114],[16,3,16,8],[16,9,16,14],[16,15,16,19],[16,20,16,33],[16,34,16,39],[16,40,16,44],[16,45,16,50],[16,51,16,56],[16,57,16,61],[16,62,16,67],[16,68,16,72],[16,73,16,78],[16,79,16,83],[16,84,16,90],[16,91,16,95],[16,96,16,101],[16,102,16,107],[16,108,16,114],[17,3,17,24],[17,25,17,47],[17,48,17,70],[17,71,17,92],[17,93,17,114],[20,3,20,22],[20,25,20,45],[20,48,20,68],[20,71,20,90],[20,93,20,112],[21,3,21,114],[22,3,22,114],[23,18,23,30],[23,39,23,51],[23,60,23,72],[23,81,23,93],[23,102,23,114],[24,18,24,30],[24,39,24,51],[24,60,24,72],[24,81,24,93],[24,102,24,114],[25,18,25,30],[25,40,25,46],[25,47,25,53],[25,54,25,60],[25,93,25,114],[26,18,26,30],[26,40,26,46],[26,47,26,53],[26,54,26,60],[26,93,26,114],[27,18,27,30],[27,40,27,46],[27,47,27,53],[27,54,27,60],[27,93,27,114],[28,18,28,30],[28,40,28,46],[28,47,28,53],[28,54,28,60],[28,93,28,114],[29,60,29,72],[29,83,29,93],[29,104,29,114],[32,83,32,93],[32,104,32,114],[33,9,33,51],[33,83,33,93],[33,104,33,114],[34,9,34,15],[34,16,34,42],[34,58,34,64],[34,65,34,91],[35,9,35,15],[35,16,35,42],[35,58,35,64],[35,65,35,91],[36,9,36,51],[36,58,36,100],[37,9,37,15],[37,16,37,42],[37,58,37,64],[37,65,37,91],[38,9,38,15],[38,16,38,42],[38,58,38,64],[38,65,38,91],[39,9,39,51],[39,58,39,100],[40,9,40,15],[40,16,40,42],[40,58,40,64],[40,65,40,91],[41,9,41,15],[41,16,41,42],[41,58,41,64],[41,65,41,91],[42,9,42,51],[42,58,42,100],[43,9,43,15],[43,16,43,42],[43,58,43,64],[43,65,43,91],[44,9,44,15],[44,16,44,42],[44,58,44,64],[44,65,44,91],[45,9,45,51],[45,58,45,100],[46,25,46,34],[48,55,48,59],[48,60,48,64],[48,65,48,69],[48,70,48,74],[48,75,48,79],[48,80,48,99],[48,100,48,104],[48,105,48,109],[48,110,48,114],[49,3,49,7],[49,8,49,11],[49,12,49,15],[49,16,49,19],[49,20,49,24],[49,25,49,29],[49,30,49,34],[49,35,49,39],[49,40,49,44],[49,45,49,49],[49,55,49,59],[49,60,49,64],[49,65,49,69],[49,70,49,74],[49,75,49,79],[49,80,49,99],[49,100,49,104],[49,105,49,109],[49,110,49,114],[50,8,50,114],[51,8,51,19],[51,20,51,114],[52,8,52,19],[52,20,52,75],[52,76,52,83],[52,84,52,114],[53,3,53,114],[1,3,2,114],[3,3,7,8],[3,9,7,12],[3,13,7,67],[6,68,7,72],[9,3,11,24],[9,25,10,44],[9,45,10,47],[9,48,10,70],[9,71,10,92],[9,93,10,111],[9,112,10,114],[12,20,14,33],[12,34,13,83],[12,84,14,90],[12,91,13,107],[12,108,14,114],[13,3,14,14],[18,3,19,24],[18,25,19,45],[18,46,19,47],[18,48,19,70],[18,71,19,92],[18,93,19,114],[23,3,24,9],[23,10,24,17],[23,31,24,38],[23,52,24,59],[23,73,24,80],[23,94,24,101],[25,3,28,9],[25,10,26,17],[25,31,26,39],[25,61,26,71],[25,72,26,80],[25,81,26,92],[27,10,28,17],[27,31,28,39],[27,61,28,71],[27,72,28,80],[27,81,28,92],[29,3,33,8],[29,9,30,15],[29,16,30,42],[29,43,32,45],[29,46,32,51],[29,52,33,59],[29,73,31,82],[29,94,31,103],[30,60,33,72],[30,83,31,93],[30,104,31,114],[31,9,32,15],[31,16,32,42],[32,73,33,82],[32,94,33,103],[34,7,36,8],[34,43,35,45],[34,46,35,51],[34,56,36,57],[34,92,35,94],[34,95,35,100],[37,7,39,8],[37,43,38,45],[37,46,38,51],[37,56,39,57],[37,92,38,94],[37,95,38,100],[40,7,42,8],[40,43,41,45],[40,46,41,51],[40,56,42,57],[40,92,41,94],[40,95,41,100],[43,7,45,8],[43,43,44,45],[43,46,44,51],[43,56,45,57],[43,92,44,94],[43,95,44,100],[46,3,48,7],[46,8,48,11],[46,12,48,15],[46,16,48,19],[46,20,48,24],[46,35,48,39],[46,40,48,44],[46,45,48,49],[46,50,49,54],[46,55,47,79],[46,80,47,114],[47,25,48,29],[47,30,48,34],[50,3,52,7],[34,3,45,6],[34,52,45,55],[34,101,45,114],[46,1,53,1]]}
[]
[null,null,null,"令和７年分　給 与 所 得 の 源 泉 徴 収 票"]
[]
[null,null,null,"支　払\n\nを受け\n\nる　者",null,null,null,null,null,"住所又は居所",null,null,null,{"$f":"IF(入力用!$M$2=\"\",\"\",入力用!$M$2)","v":""},null,null,null,null,null,null,null,null,null,null,null,null,null,null,null,null,null,null,null,null,null,null,null,null,null,null,null,null,null,null,null,null,null,null,null,null,null,null,null,null,null,null,null,null,null,null,null,null,null,null,null,null,null,null,"（受給者番号）",null,null,null,null,null,null,null,null,null,null,null,null,{"$f":"IF(入力用!$CB$2=\"\",\"\",入力用!$CB$2)","v":""}]
[]
[null,null,null,null,null,null,null,null,null,null,null,null,null,null,null,null,null,null,null,null,null,null,null,null,null,null,null,null,null,null,null,null,null,null,null,null,null,null,null,null,null,null,null,null,null,null,null,null,null,null,null,null,null,null,null,null,null,null,null,null,null,null,null,null,null,null,null,null,"（役職名）",null,null,null,null,null,null,null,null,{"$f":"IF(入力用!$BY$4=\"\",\"\",入力用!$BY$4)","v":""}]
[null,null,null,null,null,null,null,null,null,null,null,null,null,null,null,null,null,null,null,null,null,null,null,null,null,null,null,null,null,null,null,null,null,null,null,null,null,null,null,null,null,null,null,null,null,null,null,null,null,null,null,null,null,null,null,null,null,null,null,null,null,null,null,null,null,null,null,null,"氏 名",null,null,null,null,"（フリガナ）",null,null,null,null,null,null,null,null,null,{"$f":"IF(入力用!$CE$5=\"\",\"\",入力用!$CE$5)","v":""}]
[null,null,null,null,null,null,null,null,null,null,null,null,null,null,null,null,null,null,null,null,null,null,null,null,null,null,null,null,null,null,null,null,null,null,null,null,null,null,null,null,null,null,null,null,null,null,null,null,null,null,null,null,null,null,null,null,null,null,null,null,null,null,null,null,null,null,null,null,null,null,null,null,null,{"$f":"IF(入力用!$BU$6=\"\",\"\",入力用!$BU$6)","v":""}]
[null,null,null,"種　　　　　別",null,null,null,null,null,null,null,null,null,null,null,null,null,null,null,null,null,null,null,null,null,"支　払　金　額",null,null,null,null,null,null,null,null,null,null,null,null,null,null,null,null,null,null,null,null,null,null,"給与所得控除後の金額\n(調　整　控　除　後)",null,null,null,null,null,null,null,null,null,null,null,null,null,null,null,null,null,null,null,null,null,null,"所得控除の額の合計額",null,null,null,null,null,null,null,null,null,null,null,null,null,null,null,null,null,null,null,null,null,"源 泉 徴 収 税 額"]
[null,null,null,{"$f":"IF(入力用!$C$8=\"\",\"\",入力用!$C$8)","v":""},null,null,null,null,null,null,null,null,null,null,null,null,null,null,null,null,null,null,null,null,null,{"$f":"IF(入力用!$Y$8=\"\",\"\",入力用!$Y$8)","v":""},null,null,null,null,null,null,null,null,null,null,null,null,null,null,null,null,null,null,null,"円",null,null,"円",null,null,null,null,null,null,null,null,null,null,null,null,null,null,null,null,null,null,null,null,null,null,"円",null,null,null,null,null,null,null,null,null,null,null,null,null,null,null,null,null,null,null,null,null,null,null,null,null,null,null,null,null,null,null,null,null,null,null,null,null,null,null,null,"円"]
[]
[null,null,null,null,null,null,null,null,null,null,null,null,null,null,null,null,null,null,null,null,null,null,null,null,null,{"$f":"IF(入力用!$Y$9=\"\",\"\",入力用!$Y$9)","v":""},null,null,null,null,null,null,null,null,null,null,null,null,null,null,null,null,null,null,null,{"$f":"IF(入力用!$DZ$11=\"\",\"\",入力用!$DZ$11)","v":""},null,null,{"$f":"IF(入力用!$AV$9=\"\",\"\",入力用!$AV$9)","v":""},null,null,null,null,null,null,null,null,null,null,null,null,null,null,null,null,null,null,null,null,null,null,{"$f":"IF(入力用!$BS$9=\"\",\"\",入力用!$BS$9)","v":""},null,null,null,null,null,null,null,null,null,null,null,null,null,null,null,null,null,null,null,null,null,{"$f":"IF(入力用!$CO$9=\"\",\"\",入力用!$CO$9)","v":""}]
[null,null,null,"(源泉)控除対象配偶者",null,null,null,null,null,null,null,null,null,null,null,null,null,null,null,null,"配偶者(特別)\n控 除 の 額",null,null,null,null,null,null,null,null,null,null,null,null,null,"控除対象扶養親族等の数\n（配偶者を除く。）",null,null,null,null,null,null,null,null,null,null,null,null,null,null,null,null,null,null,null,null,null,null,null,null,null,null,null,null,null,null,null,null,null,null,null,null,null,null,null,null,null,null,null,null,null,null,null,null,null,"16歳未満\n扶養親族\nの　　数",null,null,null,null,null,null,"障害者の数\n（本人を除く｡）",null,null,null,null,null,null,null,null,null,null,null,null,null,null,null,null,"非居住者\nである\n親族の数"]
[null,null,null," の有無等"]
[null,null,null,null,null,null,null,null,null,null,null,null,null,null,null,"老人",null,null,null,null,null,null,null,null,null,null,null,null,null,null,null,null,null,null,"特　定",null,null,null,null,null,null,null,null,null,null,"老　　人",null,null,null,null,null,null,null,null,null,null,null,null,null,null,null,null,"そ の 他",null,null,null,null,null,null,null,null,null,null,"特　親",null,null,null,null,null,null,null,null,null,null,null,null,null,null,null,null,null,"特　別",null,null,null,null,null,null,null,null,null,null,"その他"]
[null,null,null,"有",null,null,null,null,null,"従有",null,null,null,null,null,null,null,null,null,null,"円",null,null,null,null,null,null,null,null,null,null,null,null,null,"人",null,null,null,null,null,"従人",null,null,null,null,"内",null,null,null,null,null,"人",null,null,null,null,null,"従人",null,null,null,null,"人",null,null,null,null,null,"従人",null,null,null,null,"人",null,null,null,null,null,"従人",null,null,null,null,"人",null,null,null,null,null,null,"内",null,null,null,null,"人",null,null,null,null,null,"人",null,null,null,null,null,"人"]
[null,null,null,{"$f":"IF(入力用!$C$14=\"\",\"\",入力用!$C$14)","v":""},null,null,null,null,null,{"$f":"IF(入力用!$I$14=\"\",\"\",入力用!$I$14)","v":""},null,null,null,null,null,{"$f":"IF(入力用!$O$14=\"\",\"\",入力用!$O$14)","v":""},null,null,null,null,{"$f":"IF(入力用!$T$14=\"\",\"\",入力用!$T$14)","v":""},null,null,null,null,null,null,null,null,null,null,null,null,null,{"$f":"IF(入力用!$AH$14=\"\",\"\",入力用!$AH$14)","v":""},null,null,null,null,null,{"$f":"IF(入力用!$AN$14=\"\",\"\",入力用!$AN$14)","v":""},null,null,null,null,{"$f":"IF(入力用!$AS$14=\"\",\"\",入力用!$AS$14)","v":""},null,null,null,null,null,{"$f":"IF(入力用!$AY$14=\"\",\"\",入力用!$AY$14)","v":""},null,null,null,null,null,{"$f":"IF(入力用!$BE$14=\"\",\"\",入力用!$BE$14)","v":""},null,null,null,null,{"$f":"IF(入力用!$BJ$14=\"\",\"\",入力用!$BJ$14)","v":""},null,null,null,null,null,{"$f":"IF(入力用!$BP$14=\"\",\"\",入力用!$BP$14)","v":""},null,null,null,null,{"$f":"IF(入力用!$BU$14=\"\",\"\",入力用!$BU$14)","v":""},null,null,null,null,null,{"$f":"IF(入力用!$CA$14=\"\",\"\",入力用!$CA$14)","v":""},null,null,null,null,{"$f":"IF(入力用!$CF$14=\"\",\"\",入力用!$CF$14)","v":""},null,null,null,null,null,null,{"$f":"IF(入力用!$CM$14=\"\",\"\",入力用!$CM$14)","v":""},null,null,null,null,{"$f":"IF(入力用!$CR$14=\"\",\"\",入力用!$CR$14)","v":""},null,null,null,null,null,{"$f":"IF(入力用!$CX$14=\"\",\"\",入力用!$CX$14)","v":""},null,null,null,null,null,{"$f":"IF(入力用!$DD$14=\"\",\"\",入力用!$DD$14)","v":""}]
[null,null,null,"特定親族特別控除の額",null,null,null,null,null,null,null,null,null,null,null,null,null,null,null,null,null,null,null,null,null,"社会保険料等の金額",null,null,null,null,null,null,null,null,null,null,null,null,null,null,null,null,null,null,null,null,null,null,"生命保険料の控除額",null,null,null,null,null,null,null,null,null,null,null,null,null,null,null,null,null,null,null,null,null,null,"地震保険料の控除額",null,null,null,null,null,null,null,null,null,null,null,null,null,null,null,null,null,null,null,null,null,"住宅借入金等特別控除の額"]
[null,null,null,"円",null,null,null,null,null,null,null,null,null,null,null,null,null,null,null,null,null,null,null,null,null,{"$f":"IF(入力用!$Y$16=\"\",\"\",入力用!$Y$16)","v":""},null,null,null,null,null,null,null,null,null,null,null,null,null,null,null,null,null,null,null,null,"円",null,"円",null,null,null,null,null,null,null,null,null,null,null,null,null,null,null,null,null,null,null,null,null,null,"円",null,null,null,null,null,null,null,null,null,null,null,null,null,null,null,null,null,null,null,null,null,"円"]
[]
[null,null,null,{"$f":"IF(入力用!$C$17=\"\",\"\",入力用!$C$17)","v":""},null,null,null,null,null,null,null,null,null,null,null,null,null,null,null,null,null,null,null,null,null,{"$f":"IF(入力用!$Y$17=\"\",\"\",入力用!$Y$17)","v":""},null,null,null,null,null,null,null,null,null,null,null,null,null,null,null,null,null,null,null,null,null,null,{"$f":"IF(入力用!$AV$17=\"\",\"\",入力用!$AV$17)","v":""},null,null,null,null,null,null,null,null,null,null,null,null,null,null,null,null,null,null,null,null,null,null,{"$f":"IF(入力用!$BS$17=\"\",\"\",入力用!$BS$17)","v":""},null,null,null,null,null,null,null,null,null,null,null,null,null,null,null,null,null,null,null,null,null,{"$f":"IF(入力用!$CO$17=\"\",\"\",入力用!$CO$17)","v":""}]
[null,null,null,"（摘要）"]
[null,null,null,{"$f":"IF(入力用!$C$19=\"\",\"\",入力用!$C$19)","v":""}]
[null,null,null,"生命保険\n料の金額\nの内訳",null,null,null,null,null,null,"新生命\n保険料\nの金額",null,null,null,null,null,null,null,"円",null,null,null,null,null,null,null,null,null,null,null,null,"旧生命\n保険料\nの金額",null,null,null,null,null,null,null,"円",null,null,null,null,null,null,null,null,null,null,null,null,"介護医療\n保険料\nの金額",null,null,null,null,null,null,null,"円",null,null,null,null,null,null,null,null,null,null,null,null,"新個人年\n金保険料\nの金額",null,null,null,null,null,null,null,"円",null,null,null,null,null,null,null,null,null,null,null,null,"旧個人年\n金保険料\nの金額",null,null,null,null,null,null,null,"円"]
[null,null,null,null,null,null,null,null,null,null,null,null,null,null,null,null,null,null,{"$f":"IF(入力用!$R$21=\"\",\"\",入力用!$R$21)","v":""},null,null,null,null,null,null,null,null,null,null,null,null,null,null,null,null,null,null,null,null,{"$f":"IF(入力用!$AM$21=\"\",\"\",入力用!$AM$21)","v":""},null,null,null,null,null,null,null,null,null,null,null,null,null,null,null,null,null,null,null,null,{"$f":"IF(入力用!$BH$21=\"\",\"\",入力用!$BH$21)","v":""},null,null,null,null,null,null,null,null,null,null,null,null,null,null,null,null,null,null,null,null,{"$f":"IF(入力用!$CC$21=\"\",\"\",入力用!$CC$21)","v":""},null,null,null,null,null,null,null,null,null,null,null,null,null,null,null,null,null,null,null,null,{"$f":"IF(入力用!$CX$21=\"\",\"\",入力用!$CX$21)","v":""}]
[null,null,null,"住宅借入\n金等特別\n控除の額\nの内訳",null,null,null,null,null,null,"住宅借入金\n等特別控除\n適用数",null,null,null,null,null,null,null,null,null,null,null,null,null,null,null,null,null,null,null,null,"居住開始年月\n日（１回目）",null,null,null,null,null,null,null,null,"年",null,null,null,null,null,null,"月",null,null,null,null,null,null,"日",null,null,null,null,null,null,"住宅借入金等\n特別控除区分\n（1回目）",null,null,null,null,null,null,null,null,null,null,{"$f":"IF(入力用!$BT$22=\"\",\"\",入力用!$BT$22)","v":""},null,null,null,null,null,null,null,null,"住宅借入金等\n年　末　残　高\n（1回目）",null,null,null,null,null,null,null,null,null,null,null,"円"]
[null,null,null,null,null,null,null,null,null,null,null,null,null,null,null,null,null,null,{"$f":"IF(入力用!$R$23=\"\",\"\",入力用!$R$23)","v":""},null,null,null,null,null,null,null,null,null,null,null,null,null,null,null,null,null,null,null,null,null,{"$f":"IF(入力用!$AN$23=\"\",\"\",入力用!$AN$23)","v":""},null,null,null,null,null,null,{"$f":"IF(入力用!$AU$23=\"\",\"\",入力用!$AU$23)","v":""},null,null,null,null,null,null,{"$f":"IF(入力用!$BB$23=\"\",\"\",入力用!$BB$23)","v":""},null,null,null,null,null,null,null,null,null,null,null,null,null,null,null,null,null,null,null,null,null,null,null,null,null,null,null,null,null,null,null,null,null,null,null,null,null,null,{"$f":"IF(入力用!$CO$23=\"\",\"\",入力用!$CO$23)","v":""}]
[null,null,null,null,null,null,null,null,null,null,"住宅借入金\n等特別控除\n可能額",null,null,null,null,null,null,null,"円",null,null,null,null,null,null,null,null,null,null,null,null,"居住開始年月\n日（２回目）",null,null,null,null,null,null,null,null,"年",null,null,null,null,null,null,"月",null,null,null,null,null,null,"日",null,null,null,null,null,null,"住宅借入金等\n特別控除区分\n（2回目）",null,null,null,null,null,null,null,null,null,null,{"$f":"IF(入力用!$BT$24=\"\",\"\",入力用!$BT$24)","v":""},null,null,null,null,null,null,null,null,"住宅借入金等\n年　末　残　高\n（2回目）",null,null,null,null,null,null,null,null,null,null,null,"円"]
[null,null,null,null,null,null,null,null,null,null,null,null,null,null,null,null,null,null,{"$f":"IF(入力用!$R$25=\"\",\"\",入力用!$R$25)","v":""},null,null,null,null,null,null,null,null,null,null,null,null,null,null,null,null,null,null,null,null,null,{"$f":"IF(入力用!$AN$25=\"\",\"\",入力用!$AN$25)","v":""},null,null,null,null,null,null,{"$f":"IF(入力用!$AU$25=\"\",\"\",入力用!$AU$25)","v":""},null,null,null,null,null,null,{"$f":"IF(入力用!$BB$25=\"\",\"\",入力用!$BB$25)","v":""},null,null,null,null,null,null,null,null,null,null,null,null,null,null,null,null,null,null,null,null,null,null,null,null,null,null,null,null,null,null,null,null,null,null,null,null,null,null,{"$f":"IF(入力用!$CO$25=\"\",\"\",入力用!$CO$25)","v":""}]
[null,null,null,"(源泉･特別)\n控除対象\n配偶者",null,null,null,null,null,"(フリガナ)",null,null,null,null,null,null,{"$f":"IF(入力用!$P$26=\"\",\"\",入力用!$P$26)","v":""},null,null,null,null,null,null,null,null,null,null,null,null,null,null,null,null,null,null,null,null,null,null,null,null,null,null,"区分",null,null,{"$f":"IF(入力用!$AT$26=\"\",\"\",入力用!$AT$26)","v":""},null,null,null,null,null,"配偶者の\n合計所得",null,null,null,null,null,null,null,"円",null,null,null,null,null,null,null,null,null,null,null,null,"国民年金保険\n料等の金額",null,null,null,null,null,null,null,null,null,"円",null,null,null,null,null,null,null,null,null,null,"旧長期損害\n保険料の金額",null,null,null,null,null,null,null,null,null,"円"]
[null,null,null,null,null,null,null,null,null,null,null,null,null,null,null,null,null,null,null,null,null,null,null,null,null,null,null,null,null,null,null,null,null,null,null,null,null,null,null,null,null,null,null,null,null,null,null,null,null,null,null,null,null,null,null,null,null,null,null,null,{"$f":"IF(入力用!$BH$27=\"\",\"\",入力用!$BH$27)","v":""},null,null,null,null,null,null,null,null,null,null,null,null,null,null,null,null,null,null,null,null,null,null,{"$f":"IF(入力用!$CE$27=\"\",\"\",入力用!$CE$27)","v":""},null,null,null,null,null,null,null,null,null,null,null,null,null,null,null,null,null,null,null,null,{"$f":"IF(入力用!$CZ$27=\"\",\"\",入力用!$CZ$27)","v":""}]
[null,null,null,null,null,null,null,null,null,"氏　　名",null,null,null,null,null,null,{"$f":"IF(入力用!$P$28=\"\",\"\",入力用!$P$28)","v":""}]
[null,null,null,null,null,null,null,null,null,null,null,null,null,null,null,null,null,null,null,null,null,null,null,null,null,null,null,null,null,null,null,null,null,null,null,null,null,null,null,null,null,null,null,null,null,null,null,null,null,null,null,null,null,null,null,null,null,null,null,null,null,null,null,null,null,null,null,null,null,null,null,null,null,"基礎控除の額",null,null,null,null,null,null,null,null,null,"円",null,null,null,null,null,null,null,null,null,null,"所得金額\n調整控除額",null,null,null,null,null,null,null,null,null,"円"]
[null,null,null,null,null,null,null,null,null,null,null,null,null,null,null,null,null,null,null,null,null,null,null,null,null,null,null,null,null,null,null,null,null,null,null,null,null,null,null,null,null,null,null,null,null,null,null,null,null,null,null,null,null,null,null,null,null,null,null,null,null,null,null,null,null,null,null,null,null,null,null,null,null,null,null,null,null,null,null,null,null,null,null,{"$f":"IF(入力用!$CE$30=\"\",\"\",入力用!$CE$30)","v":""},null,null,null,null,null,null,null,null,null,null,null,null,null,null,null,null,null,null,null,null,{"$f":"IF(入力用!$CZ$30=\"\",\"\",入力用!$CZ$30)","v":""}]
[null,null,null,"控除対象扶養親族等",null,null,null,"１",null,"(フリガナ)",null,null,null,null,null,null,{"$f":"IF(入力用!$P$31=\"\",\"\",入力用!$P$31)","v":""},null,null,null,null,null,null,null,null,null,null,null,null,null,null,null,null,null,null,null,null,null,null,null,null,null,null,"区分",null,null,{"$f":"IF(入力用!$AT$31=\"\",\"\",入力用!$AT$31)","v":""},null,null,null,null,null,"16歳未満の扶養親族",null,null,null,"１",null,"(フリガナ)",null,null,null,null,null,null,{"$f":"IF(入力用!$BM$31=\"\",\"\",入力用!$BM$31)","v":""},null,null,null,null,null,null,null,null,null,null,null,null,null,null,null,null,null,null,null,null,null,null,null,null,null,null,"区分",null,null,{"$f":"IF(入力用!$CQ$31=\"\",\"\",入力用!$CQ$31)","v":""}]
[null,null,null,null,null,null,null,null,null,"氏　　名",null,null,null,null,null,null,{"$f":"IF(入力用!$P$32=\"\",\"\",入力用!$P$32)","v":""},null,null,null,null,null,null,null,null,null,null,null,null,null,null,null,null,null,null,null,null,null,null,null,null,null,null,null,null,null,null,null,null,null,null,null,null,null,null,null,null,null,"氏　　名",null,null,null,null,null,null,{"$f":"IF(入力用!$BM$32=\"\",\"\",入力用!$BM$32)","v":""}]
[]
[null,null,null,null,null,null,null,"２",null,"(フリガナ)",null,null,null,null,null,null,{"$f":"IF(入力用!$P$34=\"\",\"\",入力用!$P$34)","v":""},null,null,null,null,null,null,null,null,null,null,null,null,null,null,null,null,null,null,null,null,null,null,null,null,null,null,"区分",null,null,{"$f":"IF(入力用!$AT$34=\"\",\"\",入力用!$AT$34)","v":""},null,null,null,null,null,null,null,null,null,"２",null,"(フリガナ)",null,null,null,null,null,null,{"$f":"IF(入力用!$BM$34=\"\",\"\",入力用!$BM$34)","v":""},null,null,null,null,null,null,null,null,null,null,null,null,null,null,null,null,null,null,null,null,null,null,null,null,null,null,"区分",null,null,{"$f":"IF(入力用!$CQ$34=\"\",\"\",入力用!$CQ$34)","v":""}]
[null,null,null,null,null,null,null,null,null,"氏　　名",null,null,null,null,null,null,{"$f":"IF(入力用!$P$35=\"\",\"\",入力用!$P$35)","v":""},null,null,null,null,null,null,null,null,null,null,null,null,null,null,null,null,null,null,null,null,null,null,null,null,null,null,null,null,null,null,null,null,null,null,null,null,null,null,null,null,null,"氏　　名",null,null,null,null,null,null,{"$f":"IF(入力用!$BM$35=\"\",\"\",入力用!$BM$35)","v":""}]
[]
[null,null,null,null,null,null,null,"３",null,"(フリガナ)",null,null,null,null,null,null,{"$f":"IF(入力用!$P$37=\"\",\"\",入力用!$P$37)","v":""},null,null,null,null,null,null,null,null,null,null,null,null,null,null,null,null,null,null,null,null,null,null,null,null,null,null,"区分",null,null,{"$f":"IF(入力用!$AT$37=\"\",\"\",入力用!$AT$37)","v":""},null,null,null,null,null,null,null,null,null,"３",null,"(フリガナ)",null,null,null,null,null,null,{"$f":"IF(入力用!$BM$37=\"\",\"\",入力用!$BM$37)","v":""},null,null,null,null,null,null,null,null,null,null,null,null,null,null,null,null,null,null,null,null,null,null,null,null,null,null,"区分",null,null,{"$f":"IF(入力用!$CQ$37=\"\",\"\",入力用!$CQ$37)","v":""}]
[null,null,null,null,null,null,null,null,null,"氏　　名",null,null,null,null,null,null,{"$f":"IF(入力用!$P$38=\"\",\"\",入力用!$P$38)","v":""},null,null,null,null,null,null,null,null,null,null,null,null,null,null,null,null,null,null,null,null,null,null,null,null,null,null,null,null,null,null,null,null,null,null,null,null,null,null,null,null,null,"氏　　名",null,null,null,null,null,null,{"$f":"IF(入力用!$BM$38=\"\",\"\",入力用!$BM$38)","v":""}]
[]
[null,null,null,null,null,null,null,"４",null,"(フリガナ)",null,null,null,null,null,null,{"$f":"IF(入力用!$P$40=\"\",\"\",入力用!$P$40)","v":""},null,null,null,null,null,null,null,null,null,null,null,null,null,null,null,null,null,null,null,null,null,null,null,null,null,null,"区分",null,null,{"$f":"IF(入力用!$AT$40=\"\",\"\",入力用!$AT$40)","v":""},null,null,null,null,null,null,null,null,null,"４",null,"(フリガナ)",null,null,null,null,null,null,{"$f":"IF(入力用!$BM$40=\"\",\"\",入力用!$BM$40)","v":""},null,null,null,null,null,null,null,null,null,null,null,null,null,null,null,null,null,null,null,null,null,null,null,null,null,null,"区分",null,null,{"$f":"IF(入力用!$CQ$40=\"\",\"\",入力用!$CQ$40)","v":""}]
[null,null,null,null,null,null,null,null,null,"氏　　名",null,null,null,null,null,null,{"$f":"IF(入力用!$P$41=\"\",\"\",入力用!$P$41)","v":""},null,null,null,null,null,null,null,null,null,null,null,null,null,null,null,null,null,null,null,null,null,null,null,null,null,null,null,null,null,null,null,null,null,null,null,null,null,null,null,null,null,"氏　　名",null,null,null,null,null,null,{"$f":"IF(入力用!$BM$41=\"\",\"\",入力用!$BM$41)","v":""}]
[]
[null,"（受給者交付用）",null,"未成年者",null,null,null,null,"外国人",null,null,null,"死亡退職",null,null,null,"災害者",null,null,null,"乙欄",null,null,null,null,"本人が障害者",null,null,null,null,null,null,null,null,null,"寡婦",null,null,null,null,"ひとり親",null,null,null,null,"勤労学生",null,null,null,null,null,null,null,null,null,"中途就・退職",null,null,null,null,null,null,null,null,null,null,null,null,null,null,null,null,null,null,null,null,null,null,null,null,"受給者生年月日"]
[null,null,null,null,null,null,null,null,null,null,null,null,null,null,null,null,null,null,null,null,null,null,null,null,null,"特別",null,null,null,null,"その他"]
[null,null,null,null,null,null,null,null,null,null,null,null,null,null,null,null,null,null,null,null,null,null,null,null,null,null,null,null,null,null,null,null,null,null,null,null,null,null,null,null,null,null,null,null,null,null,null,null,null,null,null,null,null,null,null,"就職",null,null,null,null,"退職",null,null,null,null,"年",null,null,null,null,"月",null,null,null,null,"日",null,null,null,null,"元　　　号",null,null,null,null,null,null,null,null,null,null,null,null,null,null,null,null,null,null,null,"年",null,null,null,null,"月",null,null,null,null,"日"]
[null,null,null,{"$f":"IF(入力用!$C$46=\"\",\"\",入力用!$C$46)","v":""},null,null,null,null,{"$f":"IF(入力用!$H$46=\"\",\"\",入力用!$H$46)","v":""},null,null,null,{"$f":"IF(入力用!$L$46=\"\",\"\",入力用!$L$46)","v":""},null,null,null,{"$f":"IF(入力用!$P$46=\"\",\"\",入力用!$P$46)","v":""},null,null,null,{"$f":"IF(入力用!$T$46=\"\",\"\",入力用!$T$46)","v":""},null,null,null,null,{"$f":"IF(入力用!$Y$46=\"\",\"\",入力用!$Y$46)","v":""},null,null,null,null,{"$f":"IF(入力用!$AD$46=\"\",\"\",入力用!$AD$46)","v":""},null,null,null,null,{"$f":"IF(入力用!$AI$46=\"\",\"\",入力用!$AI$46)","v":""},null,null,null,null,{"$f":"IF(入力用!$AN$46=\"\",\"\",入力用!$AN$46)","v":""},null,null,null,null,{"$f":"IF(入力用!$AS$46=\"\",\"\",入力用!$AS$46)","v":""},null,null,null,null,null,null,null,null,null,{"$f":"IF(入力用!$BC$46=\"\",\"\",入力用!$BC$46)","v":""},null,null,null,null,{"$f":"IF(入力用!$BH$46=\"\",\"\",入力用!$BH$46)","v":""},null,null,null,null,{"$f":"入力用!BM46","v":7},null,null,null,null,{"$f":"IF(入力用!$BR$46=\"\",\"\",入力用!$BR$46)","v":""},null,null,null,null,{"$f":"IF(入力用!$BW$46=\"\",\"\",入力用!$BW$46)","v":""},null,null,null,null,{"$f":"IF(入力用!$CB$46=\"\",\"\",入力用!$CB$46)","v":""},null,null,null,null,null,null,null,null,null,null,null,null,null,null,null,null,null,null,null,{"$f":"IF(入力用!$CV$46=\"\",\"\",入力用!$CV$46)","v":""},null,null,null,null,{"$f":"IF(入力用!$DA$46=\"\",\"\",入力用!$DA$46)","v":""},null,null,null,null,{"$f":"IF(入力用!$DF$46=\"\",\"\",入力用!$DF$46)","v":""}]
[null,null,null,"支　払　者"]
[null,null,null,null,null,null,null,null,"住所（居所）\n又は所在地",null,null,null,null,null,null,null,null,null,null,null,{"$f":"IF(入力用!$T$48=\"\",\"\",入力用!$T$48)","v":""}]
[null,null,null,null,null,null,null,null,"氏名又は名称",null,null,null,null,null,null,null,null,null,null,null,{"$f":"IF(入力用!$T$49=\"\",\"\",入力用!$T$49)","v":""},null,null,null,null,null,null,null,null,null,null,null,null,null,null,null,null,null,null,null,null,null,null,null,null,null,null,null,null,null,null,null,null,null,null,null,null,null,null,null,null,null,null,null,null,null,null,null,null,null,null,null,null,null,null,null,"（電話）",null,null,null,null,null,null,null,{"$f":"IF(入力用!$CF$49=\"\",\"\",入力用!$CF$49)","v":""}]
[null,null,null,"※「源泉徴収税額」欄には、所得税と復興特別所得税の合計額が記載されています。"]

{"sheet":"源泉徴収票（税務署提出用","index":3,"n_rows":54,"n_cols":113,"rows_kept":54,"cut":false,"hidden":false,"merged":[[3,68,3,80],[3,81,3,114],[4,68,4,78],[4,79,4,81],[4,82,4,84],[4,85,4,87],[4,88,4,90],[4,91,4,93],[4,94,4,96],[4,97,4,99],[4,100,4,102],[4,103,4,105],[4,106,4,108],[4,109,4,111],[4,112,4,114],[5,68,5,76],[5,77,5,114],[6,73,6,82],[6,83,6,114],[7,73,7,114],[8,3,8,24],[8,25,8,47],[8,48,8,70],[8,71,8,92],[8,93,8,114],[11,25,11,44],[11,45,11,47],[11,48,11,67],[11,68,11,70],[11,71,11,89],[11,90,11,92],[11,93,11,111],[11,112,11,114],[12,3,12,19],[14,15,14,19],[14,34,14,44],[14,45,14,61],[14,62,14,72],[14,73,14,83],[14,91,14,101],[14,102,14,107],[15,3,15,8],[15,9,15,14],[15,15,15,19],[15,20,15,33],[15,34,15,39],[15,40,15,44],[15,45,15,50],[15,51,15,56],[15,57,15,61],[15,62,15,67],[15,68,15,72],[15,73,15,78],[15,79,15,83],[15,84,15,90],[15,91,15,95],[15,96,15,101],[15,102,15,107],[15,108,15,114],[16,3,16,8],[16,9,16,14],[16,15,16,19],[16,20,16,33],[16,34,16,39],[16,40,16,44],[16,45,16,50],[16,51,16,56],[16,57,16,61],[16,62,16,67],[16,68,16,72],[16,73,16,78],[16,79,16,83],[16,84,16,90],[16,91,16,95],[16,96,16,101],[16,102,16,107],[16,108,16,114],[17,3,17,24],[17,25,17,47],[17,48,17,70],[17,71,17,92],[17,93,17,114],[20,3,20,22],[20,25,20,45],[20,48,20,68],[20,71,20,90],[20,93,20,112],[21,3,21,114],[22,3,22,114],[23,18,23,30],[23,39,23,51],[23,60,23,72],[23,81,23,93],[23,102,23,114],[24,18,24,30],[24,39,24,51],[24,60,24,72],[24,81,24,93],[24,102,24,114],[25,18,25,30],[25,40,25,46],[25,47,25,53],[25,54,25,60],[25,93,25,114],[26,18,26,30],[26,40,26,46],[26,47,26,53],[26,54,26,60],[26,93,26,114],[27,18,27,30],[27,40,27,46],[27,47,27,53],[27,54,27,60],[27,93,27,114],[28,18,28,30],[28,40,28,46],[28,47,28,53],[28,54,28,60],[28,93,28,114],[29,60,29,72],[29,83,29,93],[29,104,29,114],[32,83,32,93],[32,104,32,114],[33,9,33,15],[33,16,33,18],[33,19,33,21],[33,22,33,24],[33,25,33,27],[33,28,33,30],[33,31,33,33],[33,34,33,36],[33,37,33,39],[33,40,33,42],[33,43,33,45],[33,46,33,48],[33,49,33,51],[33,83,33,93],[33,104,33,114],[34,9,34,15],[34,16,34,42],[34,58,34,64],[34,65,34,91],[34,101,34,114],[35,9,35,15],[35,16,35,42],[35,58,35,64],[35,65,35,91],[36,9,36,15],[36,16,36,18],[36,19,36,21],[36,22,36,24],[36,25,36,27],[36,28,36,30],[36,31,36,33],[36,34,36,36],[36,37,36,39],[36,40,36,42],[36,43,36,45],[36,46,36,48],[36,49,36,51],[36,58,36,100],[37,9,37,15],[37,16,37,42],[37,58,37,64],[37,65,37,91],[38,9,38,15],[38,16,38,42],[38,58,38,64],[38,65,38,91],[39,9,39,15],[39,16,39,18],[39,19,39,21],[39,22,39,24],[39,25,39,27],[39,28,39,30],[39,31,39,33],[39,34,39,36],[39,37,39,39],[39,40,39,42],[39,43,39,45],[39,46,39,48],[39,49,39,51],[39,58,39,100],[40,9,40,15],[40,16,40,42],[40,58,40,64],[40,65,40,91],[41,9,41,15],[41,16,41,42],[41,58,41,64],[41,65,41,91],[42,9,42,15],[42,16,42,18],[42,19,42,21],[42,22,42,24],[42,25,42,27],[42,28,42,30],[42,31,42,33],[42,34,42,36],[42,37,42,39],[42,40,42,42],[42,43,42,45],[42,46,42,48],[42,49,42,51],[42,58,42,100],[43,9,43,15],[43,16,43,42],[43,58,43,64],[43,65,43,91],[44,9,44,15],[44,16,44,42],[44,58,44,64],[44,65,44,91],[45,9,45,15],[45,16,45,18],[45,19,45,21],[45,22,45,24],[45,25,45,27],[45,28,45,30],[45,31,45,33],[45,34,45,36],[45,37,45,39],[45,40,45,42],[45,43,45,45],[45,46,45,48],[45,49,45,51],[45,58,45,100],[46,25,46,34],[48,55,48,59],[48,60,48,64],[48,65,48,69],[48,70,48,74],[48,75,48,79],[48,80,48,99],[48,100,48,104],[48,105,48,109],[48,110,48,114],[49,3,49,7],[49,8,49,11],[49,12,49,15],[49,16,49,19],[49,20,49,24],[49,25,49,29],[49,30,49,34],[49,35,49,39],[49,40,49,44],[49,45,49,49],[49,55,49,59],[49,60,49,64],[49,65,49,69],[49,70,49,74],[49,75,49,79],[49,80,49,99],[49,100,49,104],[49,105,49,109],[49,110,49,114],[50,8,50,19],[50,20,50,22],[50,23,50,25],[50,26,50,28],[50,29,50,31],[50,32,50,34],[50,35,50,37],[50,38,50,40],[50,41,50,43],[50,44,50,46],[50,47,50,49],[50,50,50,52],[50,53,50,55],[50,56,50,58],[50,59,50,114],[51,8,51,19],[51,20,51,114],[52,8,52,19],[52,20,52,75],[52,76,52,83],[52,84,52,114],[53,3,53,15],[53,16,53,18],[53,19,53,21],[53,22,53,24],[53,25,53,27],[53,28,53,30],[53,31,53,45],[53,46,53,48],[53,49,53,51],[53,52,53,54],[53,55,53,57],[53,58,53,60],[53,61,53,63],[53,64,53,66],[53,67,53,69],[1,3,2,114],[3,3,7,8],[3,9,7,12],[3,13,7,67],[6,68,7,72],[9,3,11,24],[9,25,10,44],[9,45,10,47],[9,48,10,70],[9,71,10,92],[9,93,10,111],[9,112,10,114],[12,20,14,33],[12,34,13,83],[12,84,14,90],[12,91,13,107],[12,108,14,114],[13,3,14,14],[18,3,19,24],[18,25,19,45],[18,46,19,47],[18,48,19,70],[18,71,19,92],[18,93,19,114],[23,3,24,9],[23,10,24,17],[23,31,24,38],[23,52,24,59],[23,73,24,80],[23,94,24,101],[25,3,28,9],[25,10,26,17],[25,31,26,39],[25,61,26,71],[25,72,26,80],[25,81,26,92],[27,10,28,17],[27,31,28,39],[27,61,28,71],[27,72,28,80],[27,81,28,92],[29,3,33,8],[29,9,30,15],[29,16,30,42],[29,43,32,45],[29,46,32,51],[29,52,33,59],[29,73,31,82],[29,94,31,103],[30,60,33,72],[30,83,31,93],[30,104,31,114],[31,9,32,15],[31,16,32,42],[32,73,33,82],[32,94,33,103],[34,7,36,8],[34,43,35,45],[34,46,35,51],[34,56,36,57],[34,92,35,94],[34,95,35,100],[35,101,40,114],[37,7,39,8],[37,43,38,45],[37,46,38,51],[37,56,39,57],[37,92,38,94],[37,95,38,100],[40,7,42,8],[40,43,41,45],[40,46,41,51],[40,56,42,57],[40,92,41,94],[40,95,41,100],[41,101,45,114],[43,7,45,8],[43,43,44,45],[43,46,44,51],[43,56,45,57],[43,92,44,94],[43,95,44,100],[46,3,48,7],[46,8,48,11],[46,12,48,15],[46,16,48,19],[46,20,48,24],[46,35,48,39],[46,40,48,44],[46,45,48,49],[46,50,49,54],[46,55,47,79],[46,80,47,114],[47,25,48,29],[47,30,48,34],[50,3,52,7],[34,3,45,6],[34,52,45,55],[46,1,53,1]]}
[]
[null,null,null,"令和７年分　給 与 所 得 の 源 泉 徴 収 票"]
[]
[null,null,null,"支　払\n\nを受け\n\nる　者",null,null,null,null,null,"住所又は居所",null,null,null,{"$f":"IF(入力用!$M$2=\"\",\"\",入力用!$M$2)","v":""},null,null,null,null,null,null,null,null,null,null,null,null,null,null,null,null,null,null,null,null,null,null,null,null,null,null,null,null,null,null,null,null,null,null,null,null,null,null,null,null,null,null,null,null,null,null,null,null,null,null,null,null,null,null,"（受給者番号）",null,null,null,null,null,null,null,null,null,null,null,null,{"$f":"IF(入力用!$CB$2=\"\",\"\",入力用!$CB$2)","v":""}]
[null,null,null,null,null,null,null,null,null,null,null,null,null,null,null,null,null,null,null,null,null,null,null,null,null,null,null,null,null,null,null,null,null,null,null,null,null,null,null,null,null,null,null,null,null,null,null,null,null,null,null,null,null,null,null,null,null,null,null,null,null,null,null,null,null,null,null,null,"（個人番号）",null,null,null,null,null,null,null,null,null,null,{"$f":"IF(入力用!$DO$10=\"\",\"\",入力用!$DO$10)","v":""},null,null,{"$f":"IF(入力用!$DP$10=\"\",\"\",入力用!$DP$10)","v":""},null,null,{"$f":"IF(入力用!$DQ$10=\"\",\"\",入力用!$DQ$10)","v":""},null,null,{"$f":"IF(入力用!$DR$10=\"\",\"\",入力用!$DR$10)","v":""},null,null,{"$f":"IF(入力用!$DS$10=\"\",\"\",入力用!$DS$10)","v":""},null,null,{"$f":"IF(入力用!$DT$10=\"\",\"\",入力用!$DT$10)","v":""},null,null,{"$f":"IF(入力用!$DU$10=\"\",\"\",入力用!$DU$10)","v":""},null,null,{"$f":"IF(入力用!$DV$10=\"\",\"\",入力用!$DV$10)","v":""},null,null,{"$f":"IF(入力用!$DW$10=\"\",\"\",入力用!$DW$10)","v":""},null,null,{"$f":"IF(入力用!$DX$10=\"\",\"\",入力用!$DX$10)","v":""},null,null,{"$f":"IF(入力用!$DY$10=\"\",\"\",入力用!$DY$10)","v":""},null,null,{"$f":"IF(入力用!$DZ$10=\"\",\"\",入力用!$DZ$10)","v":""}]
[null,null,null,null,null,null,null,null,null,null,null,null,null,null,null,null,null,null,null,null,null,null,null,null,null,null,null,null,null,null,null,null,null,null,null,null,null,null,null,null,null,null,null,null,null,null,null,null,null,null,null,null,null,null,null,null,null,null,null,null,null,null,null,null,null,null,null,null,"（役職名）",null,null,null,null,null,null,null,null,{"$f":"IF(入力用!$BY$4=\"\",\"\",入力用!$BY$4)","v":""}]
[null,null,null,null,null,null,null,null,null,null,null,null,null,null,null,null,null,null,null,null,null,null,null,null,null,null,null,null,null,null,null,null,null,null,null,null,null,null,null,null,null,null,null,null,null,null,null,null,null,null,null,null,null,null,null,null,null,null,null,null,null,null,null,null,null,null,null,null,"氏 名",null,null,null,null,"（フリガナ）",null,null,null,null,null,null,null,null,null,{"$f":"IF(入力用!$CE$5=\"\",\"\",入力用!$CE$5)","v":""}]
[null,null,null,null,null,null,null,null,null,null,null,null,null,null,null,null,null,null,null,null,null,null,null,null,null,null,null,null,null,null,null,null,null,null,null,null,null,null,null,null,null,null,null,null,null,null,null,null,null,null,null,null,null,null,null,null,null,null,null,null,null,null,null,null,null,null,null,null,null,null,null,null,null,{"$f":"IF(入力用!$BU$6=\"\",\"\",入力用!$BU$6)","v":""}]
[null,null,null,"種　　　　　別",null,null,null,null,null,null,null,null,null,null,null,null,null,null,null,null,null,null,null,null,null,"支　払　金　額",null,null,null,null,null,null,null,null,null,null,null,null,null,null,null,null,null,null,null,null,null,null,"給与所得控除後の金額\n(調　整　控　除　後)",null,null,null,null,null,null,null,null,null,null,null,null,null,null,null,null,null,null,null,null,null,null,"所得控除の額の合計額",null,null,null,null,null,null,null,null,null,null,null,null,null,null,null,null,null,null,null,null,null,"源 泉 徴 収 税 額"]
[null,null,null,{"$f":"IF(入力用!$C$8=\"\",\"\",入力用!$C$8)","v":""},null,null,null,null,null,null,null,null,null,null,null,null,null,null,null,null,null,null,null,null,null,{"$f":"IF(入力用!$Y$8=\"\",\"\",入力用!$Y$8)","v":""},null,null,null,null,null,null,null,null,null,null,null,null,null,null,null,null,null,null,null,"円",null,null,"円",null,null,null,null,null,null,null,null,null,null,null,null,null,null,null,null,null,null,null,null,null,null,"円",null,null,null,null,null,null,null,null,null,null,null,null,null,null,null,null,null,null,null,null,null,null,null,null,null,null,null,null,null,null,null,null,null,null,null,null,null,null,null,null,"円"]
[]
[null,null,null,null,null,null,null,null,null,null,null,null,null,null,null,null,null,null,null,null,null,null,null,null,null,{"$f":"IF(入力用!$Y$9=\"\",\"\",入力用!$Y$9)","v":""},null,null,null,null,null,null,null,null,null,null,null,null,null,null,null,null,null,null,null,{"$f":"IF(入力用!$DZ$11=\"\",\"\",入力用!$DZ$11)","v":""},null,null,{"$f":"IF(入力用!$AV$9=\"\",\"\",入力用!$AV$9)","v":""},null,null,null,null,null,null,null,null,null,null,null,null,null,null,null,null,null,null,null,null,null,null,{"$f":"IF(入力用!$BS$9=\"\",\"\",入力用!$BS$9)","v":""},null,null,null,null,null,null,null,null,null,null,null,null,null,null,null,null,null,null,null,null,null,{"$f":"IF(入力用!$CO$9=\"\",\"\",入力用!$CO$9)","v":""}]
[null,null,null,"(源泉)控除対象配偶者",null,null,null,null,null,null,null,null,null,null,null,null,null,null,null,null,"配偶者(特別)\n控 除 の 額",null,null,null,null,null,null,null,null,null,null,null,null,null,"控除対象扶養親族等の数\n（配偶者を除く。）",null,null,null,null,null,null,null,null,null,null,null,null,null,null,null,null,null,null,null,null,null,null,null,null,null,null,null,null,null,null,null,null,null,null,null,null,null,null,null,null,null,null,null,null,null,null,null,null,null,"16歳未満\n扶養親族\nの　　数",null,null,null,null,null,null,"障害者の数\n（本人を除く｡）",null,null,null,null,null,null,null,null,null,null,null,null,null,null,null,null,"非居住者\nである\n親族の数"]
[null,null,null," の有無等"]
[null,null,null,null,null,null,null,null,null,null,null,null,null,null,null,"老人",null,null,null,null,null,null,null,null,null,null,null,null,null,null,null,null,null,null,"特　定",null,null,null,null,null,null,null,null,null,null,"老　　人",null,null,null,null,null,null,null,null,null,null,null,null,null,null,null,null,"そ の 他",null,null,null,null,null,null,null,null,null,null,"特　親",null,null,null,null,null,null,null,null,null,null,null,null,null,null,null,null,null,"特　別",null,null,null,null,null,null,null,null,null,null,"その他"]
[null,null,null,"有",null,null,null,null,null,"従有",null,null,null,null,null,null,null,null,null,null,"円",null,null,null,null,null,null,null,null,null,null,null,null,null,"人",null,null,null,null,null,"従人",null,null,null,null,"内",null,null,null,null,null,"人",null,null,null,null,null,"従人",null,null,null,null,"人",null,null,null,null,null,"従人",null,null,null,null,"人",null,null,null,null,null,"従人",null,null,null,null,"人",null,null,null,null,null,null,"内",null,null,null,null,"人",null,null,null,null,null,"人",null,null,null,null,null,"人"]
[null,null,null,{"$f":"IF(入力用!$C$14=\"\",\"\",入力用!$C$14)","v":""},null,null,null,null,null,{"$f":"IF(入力用!$I$14=\"\",\"\",入力用!$I$14)","v":""},null,null,null,null,null,{"$f":"IF(入力用!$O$14=\"\",\"\",入力用!$O$14)","v":""},null,null,null,null,{"$f":"IF(入力用!$T$14=\"\",\"\",入力用!$T$14)","v":""},null,null,null,null,null,null,null,null,null,null,null,null,null,{"$f":"IF(入力用!$AH$14=\"\",\"\",入力用!$AH$14)","v":""},null,null,null,null,null,{"$f":"IF(入力用!$AN$14=\"\",\"\",入力用!$AN$14)","v":""},null,null,null,null,{"$f":"IF(入力用!$AS$14=\"\",\"\",入力用!$AS$14)","v":""},null,null,null,null,null,{"$f":"IF(入力用!$AY$14=\"\",\"\",入力用!$AY$14)","v":""},null,null,null,null,null,{"$f":"IF(入力用!$BE$14=\"\",\"\",入力用!$BE$14)","v":""},null,null,null,null,{"$f":"IF(入力用!$BJ$14=\"\",\"\",入力用!$BJ$14)","v":""},null,null,null,null,null,{"$f":"IF(入力用!$BP$14=\"\",\"\",入力用!$BP$14)","v":""},null,null,null,null,{"$f":"IF(入力用!$BU$14=\"\",\"\",入力用!$BU$14)","v":""},null,null,null,null,null,{"$f":"IF(入力用!$CA$14=\"\",\"\",入力用!$CA$14)","v":""},null,null,null,null,{"$f":"IF(入力用!$CF$14=\"\",\"\",入力用!$CF$14)","v":""},null,null,null,null,null,null,{"$f":"IF(入力用!$CM$14=\"\",\"\",入力用!$CM$14)","v":""},null,null,null,null,{"$f":"IF(入力用!$CR$14=\"\",\"\",入力用!$CR$14)","v":""},null,null,null,null,null,{"$f":"IF(入力用!$CX$14=\"\",\"\",入力用!$CX$14)","v":""},null,null,null,null,null,{"$f":"IF(入力用!$DD$14=\"\",\"\",入力用!$DD$14)","v":""}]
[null,null,null,"特定親族特別控除の額",null,null,null,null,null,null,null,null,null,null,null,null,null,null,null,null,null,null,null,null,null,"社会保険料等の金額",null,null,null,null,null,null,null,null,null,null,null,null,null,null,null,null,null,null,null,null,null,null,"生命保険料の控除額",null,null,null,null,null,null,null,null,null,null,null,null,null,null,null,null,null,null,null,null,null,null,"地震保険料の控除額",null,null,null,null,null,null,null,null,null,null,null,null,null,null,null,null,null,null,null,null,null,"住宅借入金等特別控除の額"]
[null,null,null,"円",null,null,null,null,null,null,null,null,null,null,null,null,null,null,null,null,null,null,null,null,null,{"$f":"IF(入力用!$Y$16=\"\",\"\",入力用!$Y$16)","v":""},null,null,null,null,null,null,null,null,null,null,null,null,null,null,null,null,null,null,null,null,"円",null,"円",null,null,null,null,null,null,null,null,null,null,null,null,null,null,null,null,null,null,null,null,null,null,"円",null,null,null,null,null,null,null,null,null,null,null,null,null,null,null,null,null,null,null,null,null,"円"]
[]
[null,null,null,{"$f":"IF(入力用!$C$17=\"\",\"\",入力用!$C$17)","v":""},null,null,null,null,null,null,null,null,null,null,null,null,null,null,null,null,null,null,null,null,null,{"$f":"IF(入力用!$Y$17=\"\",\"\",入力用!$Y$17)","v":""},null,null,null,null,null,null,null,null,null,null,null,null,null,null,null,null,null,null,null,null,null,null,{"$f":"IF(入力用!$AV$17=\"\",\"\",入力用!$AV$17)","v":""},null,null,null,null,null,null,null,null,null,null,null,null,null,null,null,null,null,null,null,null,null,null,{"$f":"IF(入力用!$BS$17=\"\",\"\",入力用!$BS$17)","v":""},null,null,null,null,null,null,null,null,null,null,null,null,null,null,null,null,null,null,null,null,null,{"$f":"IF(入力用!$CO$17=\"\",\"\",入力用!$CO$17)","v":""}]
[null,null,null,"（摘要）"]
[null,null,null,{"$f":"IF(入力用!$C$19=\"\",\"\",入力用!$C$19)","v":""}]
[null,null,null,"生命保険\n料の金額\nの内訳",null,null,null,null,null,null,"新生命\n保険料\nの金額",null,null,null,null,null,null,null,"円",null,null,null,null,null,null,null,null,null,null,null,null,"旧生命\n保険料\nの金額",null,null,null,null,null,null,null,"円",null,null,null,null,null,null,null,null,null,null,null,null,"介護医療\n保険料\nの金額",null,null,null,null,null,null,null,"円",null,null,null,null,null,null,null,null,null,null,null,null,"新個人年\n金保険料\nの金額",null,null,null,null,null,null,null,"円",null,null,null,null,null,null,null,null,null,null,null,null,"旧個人年\n金保険料\nの金額",null,null,null,null,null,null,null,"円"]
[null,null,null,null,null,null,null,null,null,null,null,null,null,null,null,null,null,null,{"$f":"IF(入力用!$R$21=\"\",\"\",入力用!$R$21)","v":""},null,null,null,null,null,null,null,null,null,null,null,null,null,null,null,null,null,null,null,null,{"$f":"IF(入力用!$AM$21=\"\",\"\",入力用!$AM$21)","v":""},null,null,null,null,null,null,null,null,null,null,null,null,null,null,null,null,null,null,null,null,{"$f":"IF(入力用!$BH$21=\"\",\"\",入力用!$BH$21)","v":""},null,null,null,null,null,null,null,null,null,null,null,null,null,null,null,null,null,null,null,null,{"$f":"IF(入力用!$CC$21=\"\",\"\",入力用!$CC$21)","v":""},null,null,null,null,null,null,null,null,null,null,null,null,null,null,null,null,null,null,null,null,{"$f":"IF(入力用!$CX$21=\"\",\"\",入力用!$CX$21)","v":""}]
[null,null,null,"住宅借入\n金等特別\n控除の額\nの内訳",null,null,null,null,null,null,"住宅借入金\n等特別控除\n適用数",null,null,null,null,null,null,null,null,null,null,null,null,null,null,null,null,null,null,null,null,"居住開始年月\n日（１回目）",null,null,null,null,null,null,null,null,"年",null,null,null,null,null,null,"月",null,null,null,null,null,null,"日",null,null,null,null,null,null,"住宅借入金等\n特別控除区分\n（1回目）",null,null,null,null,null,null,null,null,null,null,{"$f":"IF(入力用!$BT$22=\"\",\"\",入力用!$BT$22)","v":""},null,null,null,null,null,null,null,null,"住宅借入金等\n年　末　残　高\n（1回目）",null,null,null,null,null,null,null,null,null,null,null,"円"]
[null,null,null,null,null,null,null,null,null,null,null,null,null,null,null,null,null,null,{"$f":"IF(入力用!$R$23=\"\",\"\",入力用!$R$23)","v":""},null,null,null,null,null,null,null,null,null,null,null,null,null,null,null,null,null,null,null,null,null,{"$f":"IF(入力用!$AN$23=\"\",\"\",入力用!$AN$23)","v":""},null,null,null,null,null,null,{"$f":"IF(入力用!$AU$23=\"\",\"\",入力用!$AU$23)","v":""},null,null,null,null,null,null,{"$f":"IF(入力用!$BB$23=\"\",\"\",入力用!$BB$23)","v":""},null,null,null,null,null,null,null,null,null,null,null,null,null,null,null,null,null,null,null,null,null,null,null,null,null,null,null,null,null,null,null,null,null,null,null,null,null,null,{"$f":"IF(入力用!$CO$23=\"\",\"\",入力用!$CO$23)","v":""}]
[null,null,null,null,null,null,null,null,null,null,"住宅借入金\n等特別控除\n可能額",null,null,null,null,null,null,null,"円",null,null,null,null,null,null,null,null,null,null,null,null,"居住開始年月\n日（２回目）",null,null,null,null,null,null,null,null,"年",null,null,null,null,null,null,"月",null,null,null,null,null,null,"日",null,null,null,null,null,null,"住宅借入金等\n特別控除区分\n（2回目）",null,null,null,null,null,null,null,null,null,null,{"$f":"IF(入力用!$BT$24=\"\",\"\",入力用!$BT$24)","v":""},null,null,null,null,null,null,null,null,"住宅借入金等\n年　末　残　高\n（2回目）",null,null,null,null,null,null,null,null,null,null,null,"円"]
[null,null,null,null,null,null,null,null,null,null,null,null,null,null,null,null,null,null,{"$f":"IF(入力用!$R$25=\"\",\"\",入力用!$R$25)","v":""},null,null,null,null,null,null,null,null,null,null,null,null,null,null,null,null,null,null,null,null,null,{"$f":"IF(入力用!$AN$25=\"\",\"\",入力用!$AN$25)","v":""},null,null,null,null,null,null,{"$f":"IF(入力用!$AU$25=\"\",\"\",入力用!$AU$25)","v":""},null,null,null,null,null,null,{"$f":"IF(入力用!$BB$25=\"\",\"\",入力用!$BB$25)","v":""},null,null,null,null,null,null,null,null,null,null,null,null,null,null,null,null,null,null,null,null,null,null,null,null,null,null,null,null,null,null,null,null,null,null,null,null,null,null,{"$f":"IF(入力用!$CO$25=\"\",\"\",入力用!$CO$25)","v":""}]
[null,null,null,"(源泉･特別)\n控除対象\n配偶者",null,null,null,null,null,"(フリガナ)",null,null,null,null,null,null,{"$f":"IF(入力用!$P$26=\"\",\"\",入力用!$P$26)","v":""},null,null,null,null,null,null,null,null,null,null,null,null,null,null,null,null,null,null,null,null,null,null,null,null,null,null,"区分",null,null,{"$f":"IF(入力用!$AT$26=\"\",\"\",入力用!$AT$26)","v":""},null,null,null,null,null,"配偶者の\n合計所得",null,null,null,null,null,null,null,"円",null,null,null,null,null,null,null,null,null,null,null,null,"国民年金保険\n料等の金額",null,null,null,null,null,null,null,null,null,"円",null,null,null,null,null,null,null,null,null,null,"旧長期損害\n保険料の金額",null,null,null,null,null,null,null,null,null,"円"]
[null,null,null,null,null,null,null,null,null,null,null,null,null,null,null,null,null,null,null,null,null,null,null,null,null,null,null,null,null,null,null,null,null,null,null,null,null,null,null,null,null,null,null,null,null,null,null,null,null,null,null,null,null,null,null,null,null,null,null,null,{"$f":"IF(入力用!$BH$27=\"\",\"\",入力用!$BH$27)","v":""},null,null,null,null,null,null,null,null,null,null,null,null,null,null,null,null,null,null,null,null,null,null,{"$f":"IF(入力用!$CE$27=\"\",\"\",入力用!$CE$27)","v":""},null,null,null,null,null,null,null,null,null,null,null,null,null,null,null,null,null,null,null,null,{"$f":"IF(入力用!$CZ$27=\"\",\"\",入力用!$CZ$27)","v":""}]
[null,null,null,null,null,null,null,null,null,"氏　　名",null,null,null,null,null,null,{"$f":"IF(入力用!$P$28=\"\",\"\",入力用!$P$28)","v":""}]
[null,null,null,null,null,null,null,null,null,null,null,null,null,null,null,null,null,null,null,null,null,null,null,null,null,null,null,null,null,null,null,null,null,null,null,null,null,null,null,null,null,null,null,null,null,null,null,null,null,null,null,null,null,null,null,null,null,null,null,null,null,null,null,null,null,null,null,null,null,null,null,null,null,"基礎控除の額",null,null,null,null,null,null,null,null,null,"円",null,null,null,null,null,null,null,null,null,null,"所得金額\n調整控除額",null,null,null,null,null,null,null,null,null,"円"]
[null,null,null,null,null,null,null,null,null,"個人番号",null,null,null,null,null,null,{"$f":"IF(入力用!$DO$23=\"\",\"\",入力用!$DO$23)","v":""},null,null,{"$f":"IF(入力用!$DP$23=\"\",\"\",入力用!$DP$23)","v":""},null,null,{"$f":"IF(入力用!$DQ$23=\"\",\"\",入力用!$DQ$23)","v":""},null,null,{"$f":"IF(入力用!$DR$23=\"\",\"\",入力用!$DR$23)","v":""},null,null,{"$f":"IF(入力用!$DS$23=\"\",\"\",入力用!$DS$23)","v":""},null,null,{"$f":"IF(入力用!$DT$23=\"\",\"\",入力用!$DT$23)","v":""},null,null,{"$f":"IF(入力用!$DU$23=\"\",\"\",入力用!$DU$23)","v":""},null,null,{"$f":"IF(入力用!$DV$23=\"\",\"\",入力用!$DV$23)","v":""},null,null,{"$f":"IF(入力用!$DW$23=\"\",\"\",入力用!$DW$23)","v":""},null,null,{"$f":"IF(入力用!$DX$23=\"\",\"\",入力用!$DX$23)","v":""},null,null,{"$f":"IF(入力用!$DY$23=\"\",\"\",入力用!$DY$23)","v":""},null,null,{"$f":"IF(入力用!$DZ$23=\"\",\"\",入力用!$DZ$23)","v":""},null,null,null,null,null,null,null,null,null,null,null,null,null,null,null,null,null,null,null,null,null,null,null,null,null,null,null,null,null,null,null,null,null,{"$f":"IF(入力用!$CE$30=\"\",\"\",入力用!$CE$30)","v":""},null,null,null,null,null,null,null,null,null,null,null,null,null,null,null,null,null,null,null,null,{"$f":"IF(入力用!$CZ$30=\"\",\"\",入力用!$CZ$30)","v":""}]
[null,null,null,"控除対象扶養親族等",null,null,null,"１",null,"(フリガナ)",null,null,null,null,null,null,{"$f":"IF(入力用!$P$31=\"\",\"\",入力用!$P$31)","v":""},null,null,null,null,null,null,null,null,null,null,null,null,null,null,null,null,null,null,null,null,null,null,null,null,null,null,"区分",null,null,{"$f":"IF(入力用!$AT$31=\"\",\"\",入力用!$AT$31)","v":""},null,null,null,null,null,"16歳未満の扶養親族",null,null,null,"１",null,"(フリガナ)",null,null,null,null,null,null,{"$f":"IF(入力用!$BM$31=\"\",\"\",入力用!$BM$31)","v":""},null,null,null,null,null,null,null,null,null,null,null,null,null,null,null,null,null,null,null,null,null,null,null,null,null,null,"区分",null,null,{"$f":"IF(入力用!$CQ$31=\"\",\"\",入力用!$CQ$31)","v":""},null,null,null,null,null,"（備考）"]
[null,null,null,null,null,null,null,null,null,"氏　　名",null,null,null,null,null,null,{"$f":"IF(入力用!$P$32=\"\",\"\",入力用!$P$32)","v":""},null,null,null,null,null,null,null,null,null,null,null,null,null,null,null,null,null,null,null,null,null,null,null,null,null,null,null,null,null,null,null,null,null,null,null,null,null,null,null,null,null,"氏　　名",null,null,null,null,null,null,{"$f":"IF(入力用!$BM$32=\"\",\"\",入力用!$BM$32)","v":""},null,null,null,null,null,null,null,null,null,null,null,null,null,null,null,null,null,null,null,null,null,null,null,null,null,null,null,null,null,null,null,null,null,null,null,{"$f":"IF(入力用!$CW$32=\"\",\"\",入力用!$CW$32)","v":""}]
[null,null,null,null,null,null,null,null,null,"個人番号",null,null,null,null,null,null,{"$f":"IF(入力用!$DO$24=\"\",\"\",入力用!$DO$24)","v":""},null,null,{"$f":"IF(入力用!$DP$24=\"\",\"\",入力用!$DP$24)","v":""},null,null,{"$f":"IF(入力用!$DQ$24=\"\",\"\",入力用!$DQ$24)","v":""},null,null,{"$f":"IF(入力用!$DR$24=\"\",\"\",入力用!$DR$24)","v":""},null,null,{"$f":"IF(入力用!$DS$24=\"\",\"\",入力用!$DS$24)","v":""},null,null,{"$f":"IF(入力用!$DT$24=\"\",\"\",入力用!$DT$24)","v":""},null,null,{"$f":"IF(入力用!$DU$24=\"\",\"\",入力用!$DU$24)","v":""},null,null,{"$f":"IF(入力用!$DV$24=\"\",\"\",入力用!$DV$24)","v":""},null,null,{"$f":"IF(入力用!$DW$24=\"\",\"\",入力用!$DW$24)","v":""},null,null,{"$f":"IF(入力用!$DX$24=\"\",\"\",入力用!$DX$24)","v":""},null,null,{"$f":"IF(入力用!$DY$24=\"\",\"\",入力用!$DY$24)","v":""},null,null,{"$f":"IF(入力用!$DZ$24=\"\",\"\",入力用!$DZ$24)","v":""}]
[null,null,null,null,null,null,null,"２",null,"(フリガナ)",null,null,null,null,null,null,{"$f":"IF(入力用!$P$34=\"\",\"\",入力用!$P$34)","v":""},null,null,null,null,null,null,null,null,null,null,null,null,null,null,null,null,null,null,null,null,null,null,null,null,null,null,"区分",null,null,{"$f":"IF(入力用!$AT$34=\"\",\"\",入力用!$AT$34)","v":""},null,null,null,null,null,null,null,null,null,"２",null,"(フリガナ)",null,null,null,null,null,null,{"$f":"IF(入力用!$BM$34=\"\",\"\",入力用!$BM$34)","v":""},null,null,null,null,null,null,null,null,null,null,null,null,null,null,null,null,null,null,null,null,null,null,null,null,null,null,"区分",null,null,{"$f":"IF(入力用!$CQ$34=\"\",\"\",入力用!$CQ$34)","v":""}]
[null,null,null,null,null,null,null,null,null,"氏　　名",null,null,null,null,null,null,{"$f":"IF(入力用!$P$35=\"\",\"\",入力用!$P$35)","v":""},null,null,null,null,null,null,null,null,null,null,null,null,null,null,null,null,null,null,null,null,null,null,null,null,null,null,null,null,null,null,null,null,null,null,null,null,null,null,null,null,null,"氏　　名",null,null,null,null,null,null,{"$f":"IF(入力用!$BM$35=\"\",\"\",入力用!$BM$35)","v":""}]
[null,null,null,null,null,null,null,null,null,"個人番号",null,null,null,null,null,null,{"$f":"IF(入力用!$DO$25=\"\",\"\",入力用!$DO$25)","v":""},null,null,{"$f":"IF(入力用!$DP$25=\"\",\"\",入力用!$DP$25)","v":""},null,null,{"$f":"IF(入力用!$DQ$25=\"\",\"\",入力用!$DQ$25)","v":""},null,null,{"$f":"IF(入力用!$DR$25=\"\",\"\",入力用!$DR$25)","v":""},null,null,{"$f":"IF(入力用!$DS$25=\"\",\"\",入力用!$DS$25)","v":""},null,null,{"$f":"IF(入力用!$DT$25=\"\",\"\",入力用!$DT$25)","v":""},null,null,{"$f":"IF(入力用!$DU$25=\"\",\"\",入力用!$DU$25)","v":""},null,null,{"$f":"IF(入力用!$DV$25=\"\",\"\",入力用!$DV$25)","v":""},null,null,{"$f":"IF(入力用!$DW$25=\"\",\"\",入力用!$DW$25)","v":""},null,null,{"$f":"IF(入力用!$DX$25=\"\",\"\",入力用!$DX$25)","v":""},null,null,{"$f":"IF(入力用!$DY$25=\"\",\"\",入力用!$DY$25)","v":""},null,null,{"$f":"IF(入力用!$DZ$25=\"\",\"\",入力用!$DZ$25)","v":""}]
[null,null,null,null,null,null,null,"３",null,"(フリガナ)",null,null,null,null,null,null,{"$f":"IF(入力用!$P$37=\"\",\"\",入力用!$P$37)","v":""},null,null,null,null,null,null,null,null,null,null,null,null,null,null,null,null,null,null,null,null,null,null,null,null,null,null,"区分",null,null,{"$f":"IF(入力用!$AT$37=\"\",\"\",入力用!$AT$37)","v":""},null,null,null,null,null,null,null,null,null,"３",null,"(フリガナ)",null,null,null,null,null,null,{"$f":"IF(入力用!$BM$37=\"\",\"\",入力用!$BM$37)","v":""},null,null,null,null,null,null,null,null,null,null,null,null,null,null,null,null,null,null,null,null,null,null,null,null,null,null,"区分",null,null,{"$f":"IF(入力用!$CQ$37=\"\",\"\",入力用!$CQ$37)","v":""}]
[null,null,null,null,null,null,null,null,null,"氏　　名",null,null,null,null,null,null,{"$f":"IF(入力用!$P$38=\"\",\"\",入力用!$P$38)","v":""},null,null,null,null,null,null,null,null,null,null,null,null,null,null,null,null,null,null,null,null,null,null,null,null,null,null,null,null,null,null,null,null,null,null,null,null,null,null,null,null,null,"氏　　名",null,null,null,null,null,null,{"$f":"IF(入力用!$BM$38=\"\",\"\",入力用!$BM$38)","v":""}]
[null,null,null,null,null,null,null,null,null,"個人番号",null,null,null,null,null,null,{"$f":"IF(入力用!$DO$26=\"\",\"\",入力用!$DO$26)","v":""},null,null,{"$f":"IF(入力用!$DP$26=\"\",\"\",入力用!$DP$26)","v":""},null,null,{"$f":"IF(入力用!$DQ$26=\"\",\"\",入力用!$DQ$26)","v":""},null,null,{"$f":"IF(入力用!$DR$26=\"\",\"\",入力用!$DR$26)","v":""},null,null,{"$f":"IF(入力用!$DS$26=\"\",\"\",入力用!$DS$26)","v":""},null,null,{"$f":"IF(入力用!$DT$26=\"\",\"\",入力用!$DT$26)","v":""},null,null,{"$f":"IF(入力用!$DU$26=\"\",\"\",入力用!$DU$26)","v":""},null,null,{"$f":"IF(入力用!$DV$26=\"\",\"\",入力用!$DV$26)","v":""},null,null,{"$f":"IF(入力用!$DW$26=\"\",\"\",入力用!$DW$26)","v":""},null,null,{"$f":"IF(入力用!$DX$26=\"\",\"\",入力用!$DX$26)","v":""},null,null,{"$f":"IF(入力用!$DY$26=\"\",\"\",入力用!$DY$26)","v":""},null,null,{"$f":"IF(入力用!$DZ$26=\"\",\"\",入力用!$DZ$26)","v":""}]
[null,null,null,null,null,null,null,"４",null,"(フリガナ)",null,null,null,null,null,null,{"$f":"IF(入力用!$P$40=\"\",\"\",入力用!$P$40)","v":""},null,null,null,null,null,null,null,null,null,null,null,null,null,null,null,null,null,null,null,null,null,null,null,null,null,null,"区分",null,null,{"$f":"IF(入力用!$AT$40=\"\",\"\",入力用!$AT$40)","v":""},null,null,null,null,null,null,null,null,null,"４",null,"(フリガナ)",null,null,null,null,null,null,{"$f":"IF(入力用!$BM$40=\"\",\"\",入力用!$BM$40)","v":""},null,null,null,null,null,null,null,null,null,null,null,null,null,null,null,null,null,null,null,null,null,null,null,null,null,null,"区分",null,null,{"$f":"IF(入力用!$CQ$40=\"\",\"\",入力用!$CQ$40)","v":""}]
[null,null,null,null,null,null,null,null,null,"氏　　名",null,null,null,null,null,null,{"$f":"IF(入力用!$P$41=\"\",\"\",入力用!$P$41)","v":""},null,null,null,null,null,null,null,null,null,null,null,null,null,null,null,null,null,null,null,null,null,null,null,null,null,null,null,null,null,null,null,null,null,null,null,null,null,null,null,null,null,"氏　　名",null,null,null,null,null,null,{"$f":"IF(入力用!$BM$41=\"\",\"\",入力用!$BM$41)","v":""}]
[null,null,null,null,null,null,null,null,null,"個人番号",null,null,null,null,null,null,{"$f":"IF(入力用!$DO$27=\"\",\"\",入力用!$DO$27)","v":""},null,null,{"$f":"IF(入力用!$DP$27=\"\",\"\",入力用!$DP$27)","v":""},null,null,{"$f":"IF(入力用!$DQ$27=\"\",\"\",入力用!$DQ$27)","v":""},null,null,{"$f":"IF(入力用!$DR$27=\"\",\"\",入力用!$DR$27)","v":""},null,null,{"$f":"IF(入力用!$DS$27=\"\",\"\",入力用!$DS$27)","v":""},null,null,{"$f":"IF(入力用!$DT$27=\"\",\"\",入力用!$DT$27)","v":""},null,null,{"$f":"IF(入力用!$DU$27=\"\",\"\",入力用!$DU$27)","v":""},null,null,{"$f":"IF(入力用!$DV$27=\"\",\"\",入力用!$DV$27)","v":""},null,null,{"$f":"IF(入力用!$DW$27=\"\",\"\",入力用!$DW$27)","v":""},null,null,{"$f":"IF(入力用!$DX$27=\"\",\"\",入力用!$DX$27)","v":""},null,null,{"$f":"IF(入力用!$DY$27=\"\",\"\",入力用!$DY$27)","v":""},null,null,{"$f":"IF(入力用!$DZ$27=\"\",\"\",入力用!$DZ$27)","v":""}]
[null,"（税務署提出用）",null,"未成年者",null,null,null,null,"外国人",null,null,null,"死亡退職",null,null,null,"災害者",null,null,null,"乙欄",null,null,null,null,"本人が障害者",null,null,null,null,null,null,null,null,null,"寡婦",null,null,null,null,"ひとり親",null,null,null,null,"勤労学生",null,null,null,null,null,null,null,null,null,"中途就・退職",null,null,null,null,null,null,null,null,null,null,null,null,null,null,null,null,null,null,null,null,null,null,null,null,"受給者生年月日"]
[null,null,null,null,null,null,null,null,null,null,null,null,null,null,null,null,null,null,null,null,null,null,null,null,null,"特別",null,null,null,null,"その他"]
[null,null,null,null,null,null,null,null,null,null,null,null,null,null,null,null,null,null,null,null,null,null,null,null,null,null,null,null,null,null,null,null,null,null,null,null,null,null,null,null,null,null,null,null,null,null,null,null,null,null,null,null,null,null,null,"就職",null,null,null,null,"退職",null,null,null,null,"年",null,null,null,null,"月",null,null,null,null,"日",null,null,null,null,"元　　　号",null,null,null,null,null,null,null,null,null,null,null,null,null,null,null,null,null,null,null,"年",null,null,null,null,"月",null,null,null,null,"日"]
[null,null,null,{"$f":"IF(入力用!$C$46=\"\",\"\",入力用!$C$46)","v":""},null,null,null,null,{"$f":"IF(入力用!$H$46=\"\",\"\",入力用!$H$46)","v":""},null,null,null,{"$f":"IF(入力用!$L$46=\"\",\"\",入力用!$L$46)","v":""},null,null,null,{"$f":"IF(入力用!$P$46=\"\",\"\",入力用!$P$46)","v":""},null,null,null,{"$f":"IF(入力用!$T$46=\"\",\"\",入力用!$T$46)","v":""},null,null,null,null,{"$f":"IF(入力用!$Y$46=\"\",\"\",入力用!$Y$46)","v":""},null,null,null,null,{"$f":"IF(入力用!$AD$46=\"\",\"\",入力用!$AD$46)","v":""},null,null,null,null,{"$f":"IF(入力用!$AI$46=\"\",\"\",入力用!$AI$46)","v":""},null,null,null,null,{"$f":"IF(入力用!$AN$46=\"\",\"\",入力用!$AN$46)","v":""},null,null,null,null,{"$f":"IF(入力用!$AS$46=\"\",\"\",入力用!$AS$46)","v":""},null,null,null,null,null,null,null,null,null,{"$f":"IF(入力用!$BC$46=\"\",\"\",入力用!$BC$46)","v":""},null,null,null,null,{"$f":"IF(入力用!$BH$46=\"\",\"\",入力用!$BH$46)","v":""},null,null,null,null,7,null,null,null,null,{"$f":"IF(入力用!$BR$46=\"\",\"\",入力用!$BR$46)","v":""},null,null,null,null,{"$f":"IF(入力用!$BW$46=\"\",\"\",入力用!$BW$46)","v":""},null,null,null,null,{"$f":"IF(入力用!$CB$46=\"\",\"\",入力用!$CB$46)","v":""},null,null,null,null,null,null,null,null,null,null,null,null,null,null,null,null,null,null,null,{"$f":"IF(入力用!$CV$46=\"\",\"\",入力用!$CV$46)","v":""},null,null,null,null,{"$f":"IF(入力用!$DA$46=\"\",\"\",入力用!$DA$46)","v":""},null,null,null,null,{"$f":"IF(入力用!$DF$46=\"\",\"\",入力用!$DF$46)","v":""}]
[null,null,null,"支　払　者",null,null,null,null,"個人番号又は\n法人番号",null,null,null,null,null,null,null,null,null,null,null,{"$f":"IF(入力用!$DN$32=\"\",\"\",IF(入力用!$DN$32=0,\"\",入力用!$DN$34))","v":""},null,null,{"$f":"IF(入力用!$DO$32=\"\",\"\",入力用!$DO$32)","v":""},null,null,{"$f":"IF(入力用!$DP$32=\"\",\"\",入力用!$DP$32)","v":""},null,null,{"$f":"IF(入力用!$DQ$32=\"\",\"\",入力用!$DQ$32)","v":""},null,null,{"$f":"IF(入力用!$DR$32=\"\",\"\",入力用!$DR$32)","v":""},null,null,{"$f":"IF(入力用!$DS$32=\"\",\"\",入力用!$DS$32)","v":""},null,null,{"$f":"IF(入力用!$DT$32=\"\",\"\",入力用!$DT$32)","v":""},null,null,{"$f":"IF(入力用!$DU$32=\"\",\"\",入力用!$DU$32)","v":""},null,null,{"$f":"IF(入力用!$DV$32=\"\",\"\",入力用!$DV$32)","v":""},null,null,{"$f":"IF(入力用!$DW$32=\"\",\"\",入力用!$DW$32)","v":""},null,null,{"$f":"IF(入力用!$DX$32=\"\",\"\",入力用!$DX$32)","v":""},null,null,{"$f":"IF(入力用!$DY$32=\"\",\"\",入力用!$DY$32)","v":""},null,null,{"$f":"IF(入力用!$DZ$32=\"\",\"\",入力用!$DZ$32)","v":""},null,null,"（右詰で記載してください。）"]
[null,null,null,null,null,null,null,null,"住所（居所）\n又は所在地",null,null,null,null,null,null,null,null,null,null,null,{"$f":"IF(入力用!$T$48=\"\",\"\",入力用!$T$48)","v":""}]
[null,null,null,null,null,null,null,null,"氏名又は名称",null,null,null,null,null,null,null,null,null,null,null,{"$f":"IF(入力用!$T$49=\"\",\"\",入力用!$T$49)","v":""},null,null,null,null,null,null,null,null,null,null,null,null,null,null,null,null,null,null,null,null,null,null,null,null,null,null,null,null,null,null,null,null,null,null,null,null,null,null,null,null,null,null,null,null,null,null,null,null,null,null,null,null,null,null,null,"（電話）",null,null,null,null,null,null,null,{"$f":"IF(入力用!$CF$49=\"\",\"\",入力用!$CF$49)","v":""}]
[null,null,null,"署　番　号",null,null,null,null,null,null,null,null,null,null,null,null,{"$f":"IF(入力用!$P$50=\"\",\"\",入力用!$P$50)","v":""},null,null,{"$f":"IF(入力用!S50=\"\",\"\",入力用!S50)","v":""},null,null,{"$f":"IF(入力用!V50=\"\",\"\",入力用!V50)","v":""},null,null,{"$f":"IF(入力用!Y50=\"\",\"\",入力用!Y50)","v":""},null,null,{"$f":"IF(入力用!AB50=\"\",\"\",入力用!AB50)","v":""},null,null,"整　理　番　号",null,null,null,null,null,null,null,null,null,null,null,null,null,null,{"$f":"IF(入力用!AT50=\"\",\"\",入力用!AT50)","v":""},null,null,{"$f":"IF(入力用!AW50=\"\",\"\",入力用!AW50)","v":""},null,null,{"$f":"IF(入力用!AZ50=\"\",\"\",入力用!AZ50)","v":""},null,null,{"$f":"IF(入力用!BC50=\"\",\"\",入力用!BC50)","v":""},null,null,{"$f":"IF(入力用!BF50=\"\",\"\",入力用!BF50)","v":""},null,null,{"$f":"IF(入力用!BI50=\"\",\"\",入力用!BI50)","v":""},null,null,{"$f":"IF(入力用!BL50=\"\",\"\",入力用!BL50)","v":""},null,null,{"$f":"IF(入力用!BO50=\"\",\"\",入力用!BO50)","v":""}]